{"text_format":"3","workbook":"xlsx","n_sheets":4,"sheets":["Übersicht","Anmeldung Teilnehmer","Schützen_DB","Dropdown"],"not_rendered":{"images":1,"defined_names":10},"read":"whole","date_system":"1900"}

{"sheet":"Übersicht","index":0,"n_rows":22,"n_cols":2,"rows_kept":22,"merged":[[2,1,2,4],[21,0,24,5]]}
["Anmeldungen Kant. Cup AR 300m"]
[]
["Verein",{"$f":"IF('Anmeldung Teilnehmer'!B6=\"Hier Vereinsname auswählen\", \"Vor Teilnehmer erfassung, in Tabelle Anmeldung Teilnehmer zuerst Verein in Zelle B6 auswählen\",'Anmeldung Teilnehmer'!B6)","v":"Vor Teilnehmer erfassung, in Tabelle Anmeldung Teilnehmer zuerst Verein in Zelle B6 auswählen"}]
[]
["Anzahl Feld Sport (S)",{"$f":"ZaehlenFeld_S","v":0}]
["Anzahl Feld Ordonnanz (O)",{"$f":"ZaehlenFeld_O","v":0}]
["Anzahl Feld Jugend U21/U15 (J)",{"$f":"ZaehlenFeld_J","v":0}]
[]
[]
[]
["Total:",{"$f":"SUM(B5:B10)","v":0}]
[]
["Der Kant. Cup findet am"]
["2026-09-12"]
["in Herisau Säge statt."]
[]
["Die Anmeldungen sind bis 30.08. an folgende E-Mail-Adresse zu richten:"]
[]
["wettkaempfe@ksv-ar.ch"]
[]
[]
["Dem Angemeldeten Verein werden pro Teilnehmer CHF 20.00 auf der Jahresrechnung belastet. Abmeldungen können nicht berücksichtigt werden. Es kann jedoch ein anderes Mitglied aus dem Verein teilnehmen. Die Mutation ist schnellstmöglichst dem wettkaempfe@ksv-ar.ch zu melden."]

{"sheet":"Anmeldung Teilnehmer","index":1,"n_rows":50,"n_cols":5,"rows_kept":50,"merged":[[5,1,5,4],[6,0,6,4]]}
[null,{"$f":"Übersicht!A1","v":"Anmeldungen Kant. Cup AR 300m"}]
[]
[]
[]
[]
["Verein:","Hier Vereinsname auswählen"]
["ein Teilnehmer darf nur in einem Feld starten"]
["Feld","Lizenz-Nr","Name","Vorname","Jahrgang"]
[null,null,{"$f":"IF(Anmeldung[[#This Row],[Lizenz-Nr]]=\"\",\"\",IF(ISNA(VLOOKUP(Anmeldung[[#This Row],[Lizenz-Nr]],DB_Schützen[],Schützen_DB!$B$1,FALSE)),\"Teilnehmer\",VLOOKUP(Anmeldung[[#This Row],[Lizenz-Nr]],DB_Schützen[],Schützen_DB!$B$1,FALSE)))","v":""},{"$f":"IF(Anmeldung[[#This Row],[Lizenz-Nr]]=\"\",\"\",IF(ISNA(VLOOKUP(Anmeldung[[#This Row],[Lizenz-Nr]],DB_Schützen[],Schützen_DB!$C$1,FALSE)),\"nicht gefunden\",VLOOKUP(Anmeldung[[#This Row],[Lizenz-Nr]],DB_Schützen[],Schützen_DB!$C$1,FALSE)))","v":""},{"$f":"IF(Anmeldung[[#This Row],[Lizenz-Nr]]=\"\",\"\",IF(ISNA(VLOOKUP(Anmeldung[[#This Row],[Lizenz-Nr]],DB_Schützen[],Schützen_DB!$D$1,FALSE)),\"Lizenznummer prüfen oder Teilnhemer in Schützen_DB erfassen\",VLOOKUP(Anmeldung[[#This Row],[Lizenz-Nr]],DB_Schützen[],Schützen_DB!$D$1,FALSE)))","v":""}]
[null,null,{"$f":"IF(Anmeldung[[#This Row],[Lizenz-Nr]]=\"\",\"\",IF(ISNA(VLOOKUP(Anmeldung[[#This Row],[Lizenz-Nr]],DB_Schützen[],Schützen_DB!$B$1,FALSE)),\"Teilnehmer\",VLOOKUP(Anmeldung[[#This Row],[Lizenz-Nr]],DB_Schützen[],Schützen_DB!$B$1,FALSE)))","v":""},{"$f":"IF(Anmeldung[[#This Row],[Lizenz-Nr]]=\"\",\"\",IF(ISNA(VLOOKUP(Anmeldung[[#This Row],[Lizenz-Nr]],DB_Schützen[],Schützen_DB!$C$1,FALSE)),\"nicht gefunden\",VLOOKUP(Anmeldung[[#This Row],[Lizenz-Nr]],DB_Schützen[],Schützen_DB!$C$1,FALSE)))","v":""},{"$f":"IF(Anmeldung[[#This Row],[Lizenz-Nr]]=\"\",\"\",IF(ISNA(VLOOKUP(Anmeldung[[#This Row],[Lizenz-Nr]],DB_Schützen[],Schützen_DB!$D$1,FALSE)),\"Lizenznummer prüfen oder Teilnhemer in Schützen_DB erfassen\",VLOOKUP(Anmeldung[[#This Row],[Lizenz-Nr]],DB_Schützen[],Schützen_DB!$D$1,FALSE)))","v":""}]
[null,null,{"$f":"IF(Anmeldung[[#This Row],[Lizenz-Nr]]=\"\",\"\",IF(ISNA(VLOOKUP(Anmeldung[[#This Row],[Lizenz-Nr]],DB_Schützen[],Schützen_DB!$B$1,FALSE)),\"Teilnehmer\",VLOOKUP(Anmeldung[[#This Row],[Lizenz-Nr]],DB_Schützen[],Schützen_DB!$B$1,FALSE)))","v":""},{"$f":"IF(Anmeldung[[#This Row],[Lizenz-Nr]]=\"\",\"\",IF(ISNA(VLOOKUP(Anmeldung[[#This Row],[Lizenz-Nr]],DB_Schützen[],Schützen_DB!$C$1,FALSE)),\"nicht gefunden\",VLOOKUP(Anmeldung[[#This Row],[Lizenz-Nr]],DB_Schützen[],Schützen_DB!$C$1,FALSE)))","v":""},{"$f":"IF(Anmeldung[[#This Row],[Lizenz-Nr]]=\"\",\"\",IF(ISNA(VLOOKUP(Anmeldung[[#This Row],[Lizenz-Nr]],DB_Schützen[],Schützen_DB!$D$1,FALSE)),\"Lizenznummer prüfen oder Teilnhemer in Schützen_DB erfassen\",VLOOKUP(Anmeldung[[#This Row],[Lizenz-Nr]],DB_Schützen[],Schützen_DB!$D$1,FALSE)))","v":""}]
[null,null,{"$f":"IF(Anmeldung[[#This Row],[Lizenz-Nr]]=\"\",\"\",IF(ISNA(VLOOKUP(Anmeldung[[#This Row],[Lizenz-Nr]],DB_Schützen[],Schützen_DB!$B$1,FALSE)),\"Teilnehmer\",VLOOKUP(Anmeldung[[#This Row],[Lizenz-Nr]],DB_Schützen[],Schützen_DB!$B$1,FALSE)))","v":""},{"$f":"IF(Anmeldung[[#This Row],[Lizenz-Nr]]=\"\",\"\",IF(ISNA(VLOOKUP(Anmeldung[[#This Row],[Lizenz-Nr]],DB_Schützen[],Schützen_DB!$C$1,FALSE)),\"nicht gefunden\",VLOOKUP(Anmeldung[[#This Row],[Lizenz-Nr]],DB_Schützen[],Schützen_DB!$C$1,FALSE)))","v":""},{"$f":"IF(Anmeldung[[#This Row],[Lizenz-Nr]]=\"\",\"\",IF(ISNA(VLOOKUP(Anmeldung[[#This Row],[Lizenz-Nr]],DB_Schützen[],Schützen_DB!$D$1,FALSE)),\"Lizenznummer prüfen oder Teilnhemer in Schützen_DB erfassen\",VLOOKUP(Anmeldung[[#This Row],[Lizenz-Nr]],DB_Schützen[],Schützen_DB!$D$1,FALSE)))","v":""}]
[null,null,{"$f":"IF(Anmeldung[[#This Row],[Lizenz-Nr]]=\"\",\"\",IF(ISNA(VLOOKUP(Anmeldung[[#This Row],[Lizenz-Nr]],DB_Schützen[],Schützen_DB!$B$1,FALSE)),\"Teilnehmer\",VLOOKUP(Anmeldung[[#This Row],[Lizenz-Nr]],DB_Schützen[],Schützen_DB!$B$1,FALSE)))","v":""},{"$f":"IF(Anmeldung[[#This Row],[Lizenz-Nr]]=\"\",\"\",IF(ISNA(VLOOKUP(Anmeldung[[#This Row],[Lizenz-Nr]],DB_Schützen[],Schützen_DB!$C$1,FALSE)),\"nicht gefunden\",VLOOKUP(Anmeldung[[#This Row],[Lizenz-Nr]],DB_Schützen[],Schützen_DB!$C$1,FALSE)))","v":""},{"$f":"IF(Anmeldung[[#This Row],[Lizenz-Nr]]=\"\",\"\",IF(ISNA(VLOOKUP(Anmeldung[[#This Row],[Lizenz-Nr]],DB_Schützen[],Schützen_DB!$D$1,FALSE)),\"Lizenznummer prüfen oder Teilnhemer in Schützen_DB erfassen\",VLOOKUP(Anmeldung[[#This Row],[Lizenz-Nr]],DB_Schützen[],Schützen_DB!$D$1,FALSE)))","v":""}]
[null,null,{"$f":"IF(Anmeldung[[#This Row],[Lizenz-Nr]]=\"\",\"\",IF(ISNA(VLOOKUP(Anmeldung[[#This Row],[Lizenz-Nr]],DB_Schützen[],Schützen_DB!$B$1,FALSE)),\"Teilnehmer\",VLOOKUP(Anmeldung[[#This Row],[Lizenz-Nr]],DB_Schützen[],Schützen_DB!$B$1,FALSE)))","v":""},{"$f":"IF(Anmeldung[[#This Row],[Lizenz-Nr]]=\"\",\"\",IF(ISNA(VLOOKUP(Anmeldung[[#This Row],[Lizenz-Nr]],DB_Schützen[],Schützen_DB!$C$1,FALSE)),\"nicht gefunden\",VLOOKUP(Anmeldung[[#This Row],[Lizenz-Nr]],DB_Schützen[],Schützen_DB!$C$1,FALSE)))","v":""},{"$f":"IF(Anmeldung[[#This Row],[Lizenz-Nr]]=\"\",\"\",IF(ISNA(VLOOKUP(Anmeldung[[#This Row],[Lizenz-Nr]],DB_Schützen[],Schützen_DB!$D$1,FALSE)),\"Lizenznummer prüfen oder Teilnhemer in Schützen_DB erfassen\",VLOOKUP(Anmeldung[[#This Row],[Lizenz-Nr]],DB_Schützen[],Schützen_DB!$D$1,FALSE)))","v":""}]
[null,null,{"$f":"IF(Anmeldung[[#This Row],[Lizenz-Nr]]=\"\",\"\",IF(ISNA(VLOOKUP(Anmeldung[[#This Row],[Lizenz-Nr]],DB_Schützen[],Schützen_DB!$B$1,FALSE)),\"Teilnehmer\",VLOOKUP(Anmeldung[[#This Row],[Lizenz-Nr]],DB_Schützen[],Schützen_DB!$B$1,FALSE)))","v":""},{"$f":"IF(Anmeldung[[#This Row],[Lizenz-Nr]]=\"\",\"\",IF(ISNA(VLOOKUP(Anmeldung[[#This Row],[Lizenz-Nr]],DB_Schützen[],Schützen_DB!$C$1,FALSE)),\"nicht gefunden\",VLOOKUP(Anmeldung[[#This Row],[Lizenz-Nr]],DB_Schützen[],Schützen_DB!$C$1,FALSE)))","v":""},{"$f":"IF(Anmeldung[[#This Row],[Lizenz-Nr]]=\"\",\"\",IF(ISNA(VLOOKUP(Anmeldung[[#This Row],[Lizenz-Nr]],DB_Schützen[],Schützen_DB!$D$1,FALSE)),\"Lizenznummer prüfen oder Teilnhemer in Schützen_DB erfassen\",VLOOKUP(Anmeldung[[#This Row],[Lizenz-Nr]],DB_Schützen[],Schützen_DB!$D$1,FALSE)))","v":""}]
[null,null,{"$f":"IF(Anmeldung[[#This Row],[Lizenz-Nr]]=\"\",\"\",IF(ISNA(VLOOKUP(Anmeldung[[#This Row],[Lizenz-Nr]],DB_Schützen[],Schützen_DB!$B$1,FALSE)),\"Teilnehmer\",VLOOKUP(Anmeldung[[#This Row],[Lizenz-Nr]],DB_Schützen[],Schützen_DB!$B$1,FALSE)))","v":""},{"$f":"IF(Anmeldung[[#This Row],[Lizenz-Nr]]=\"\",\"\",IF(ISNA(VLOOKUP(Anmeldung[[#This Row],[Lizenz-Nr]],DB_Schützen[],Schützen_DB!$C$1,FALSE)),\"nicht gefunden\",VLOOKUP(Anmeldung[[#This Row],[Lizenz-Nr]],DB_Schützen[],Schützen_DB!$C$1,FALSE)))","v":""},{"$f":"IF(Anmeldung[[#This Row],[Lizenz-Nr]]=\"\",\"\",IF(ISNA(VLOOKUP(Anmeldung[[#This Row],[Lizenz-Nr]],DB_Schützen[],Schützen_DB!$D$1,FALSE)),\"Lizenznummer prüfen oder Teilnhemer in Schützen_DB erfassen\",VLOOKUP(Anmeldung[[#This Row],[Lizenz-Nr]],DB_Schützen[],Schützen_DB!$D$1,FALSE)))","v":""}]
[null,null,{"$f":"IF(Anmeldung[[#This Row],[Lizenz-Nr]]=\"\",\"\",IF(ISNA(VLOOKUP(Anmeldung[[#This Row],[Lizenz-Nr]],DB_Schützen[],Schützen_DB!$B$1,FALSE)),\"Teilnehmer\",VLOOKUP(Anmeldung[[#This Row],[Lizenz-Nr]],DB_Schützen[],Schützen_DB!$B$1,FALSE)))","v":""},{"$f":"IF(Anmeldung[[#This Row],[Lizenz-Nr]]=\"\",\"\",IF(ISNA(VLOOKUP(Anmeldung[[#This Row],[Lizenz-Nr]],DB_Schützen[],Schützen_DB!$C$1,FALSE)),\"nicht gefunden\",VLOOKUP(Anmeldung[[#This Row],[Lizenz-Nr]],DB_Schützen[],Schützen_DB!$C$1,FALSE)))","v":""},{"$f":"IF(Anmeldung[[#This Row],[Lizenz-Nr]]=\"\",\"\",IF(ISNA(VLOOKUP(Anmeldung[[#This Row],[Lizenz-Nr]],DB_Schützen[],Schützen_DB!$D$1,FALSE)),\"Lizenznummer prüfen oder Teilnhemer in Schützen_DB erfassen\",VLOOKUP(Anmeldung[[#This Row],[Lizenz-Nr]],DB_Schützen[],Schützen_DB!$D$1,FALSE)))","v":""}]
[null,null,{"$f":"IF(Anmeldung[[#This Row],[Lizenz-Nr]]=\"\",\"\",IF(ISNA(VLOOKUP(Anmeldung[[#This Row],[Lizenz-Nr]],DB_Schützen[],Schützen_DB!$B$1,FALSE)),\"Teilnehmer\",VLOOKUP(Anmeldung[[#This Row],[Lizenz-Nr]],DB_Schützen[],Schützen_DB!$B$1,FALSE)))","v":""},{"$f":"IF(Anmeldung[[#This Row],[Lizenz-Nr]]=\"\",\"\",IF(ISNA(VLOOKUP(Anmeldung[[#This Row],[Lizenz-Nr]],DB_Schützen[],Schützen_DB!$C$1,FALSE)),\"nicht gefunden\",VLOOKUP(Anmeldung[[#This Row],[Lizenz-Nr]],DB_Schützen[],Schützen_DB!$C$1,FALSE)))","v":""},{"$f":"IF(Anmeldung[[#This Row],[Lizenz-Nr]]=\"\",\"\",IF(ISNA(VLOOKUP(Anmeldung[[#This Row],[Lizenz-Nr]],DB_Schützen[],Schützen_DB!$D$1,FALSE)),\"Lizenznummer prüfen oder Teilnhemer in Schützen_DB erfassen\",VLOOKUP(Anmeldung[[#This Row],[Lizenz-Nr]],DB_Schützen[],Schützen_DB!$D$1,FALSE)))","v":""}]
[null,null,{"$f":"IF(Anmeldung[[#This Row],[Lizenz-Nr]]=\"\",\"\",IF(ISNA(VLOOKUP(Anmeldung[[#This Row],[Lizenz-Nr]],DB_Schützen[],Schützen_DB!$B$1,FALSE)),\"Teilnehmer\",VLOOKUP(Anmeldung[[#This Row],[Lizenz-Nr]],DB_Schützen[],Schützen_DB!$B$1,FALSE)))","v":""},{"$f":"IF(Anmeldung[[#This Row],[Lizenz-Nr]]=\"\",\"\",IF(ISNA(VLOOKUP(Anmeldung[[#This Row],[Lizenz-Nr]],DB_Schützen[],Schützen_DB!$C$1,FALSE)),\"nicht gefunden\",VLOOKUP(Anmeldung[[#This Row],[Lizenz-Nr]],DB_Schützen[],Schützen_DB!$C$1,FALSE)))","v":""},{"$f":"IF(Anmeldung[[#This Row],[Lizenz-Nr]]=\"\",\"\",IF(ISNA(VLOOKUP(Anmeldung[[#This Row],[Lizenz-Nr]],DB_Schützen[],Schützen_DB!$D$1,FALSE)),\"Lizenznummer prüfen oder Teilnhemer in Schützen_DB erfassen\",VLOOKUP(Anmeldung[[#This Row],[Lizenz-Nr]],DB_Schützen[],Schützen_DB!$D$1,FALSE)))","v":""}]
[null,null,{"$f":"IF(Anmeldung[[#This Row],[Lizenz-Nr]]=\"\",\"\",IF(ISNA(VLOOKUP(Anmeldung[[#This Row],[Lizenz-Nr]],DB_Schützen[],Schützen_DB!$B$1,FALSE)),\"Teilnehmer\",VLOOKUP(Anmeldung[[#This Row],[Lizenz-Nr]],DB_Schützen[],Schützen_DB!$B$1,FALSE)))","v":""},{"$f":"IF(Anmeldung[[#This Row],[Lizenz-Nr]]=\"\",\"\",IF(ISNA(VLOOKUP(Anmeldung[[#This Row],[Lizenz-Nr]],DB_Schützen[],Schützen_DB!$C$1,FALSE)),\"nicht gefunden\",VLOOKUP(Anmeldung[[#This Row],[Lizenz-Nr]],DB_Schützen[],Schützen_DB!$C$1,FALSE)))","v":""},{"$f":"IF(Anmeldung[[#This Row],[Lizenz-Nr]]=\"\",\"\",IF(ISNA(VLOOKUP(Anmeldung[[#This Row],[Lizenz-Nr]],DB_Schützen[],Schützen_DB!$D$1,FALSE)),\"Lizenznummer prüfen oder Teilnhemer in Schützen_DB erfassen\",VLOOKUP(Anmeldung[[#This Row],[Lizenz-Nr]],DB_Schützen[],Schützen_DB!$D$1,FALSE)))","v":""}]
[null,null,{"$f":"IF(Anmeldung[[#This Row],[Lizenz-Nr]]=\"\",\"\",IF(ISNA(VLOOKUP(Anmeldung[[#This Row],[Lizenz-Nr]],DB_Schützen[],Schützen_DB!$B$1,FALSE)),\"Teilnehmer\",VLOOKUP(Anmeldung[[#This Row],[Lizenz-Nr]],DB_Schützen[],Schützen_DB!$B$1,FALSE)))","v":""},{"$f":"IF(Anmeldung[[#This Row],[Lizenz-Nr]]=\"\",\"\",IF(ISNA(VLOOKUP(Anmeldung[[#This Row],[Lizenz-Nr]],DB_Schützen[],Schützen_DB!$C$1,FALSE)),\"nicht gefunden\",VLOOKUP(Anmeldung[[#This Row],[Lizenz-Nr]],DB_Schützen[],Schützen_DB!$C$1,FALSE)))","v":""},{"$f":"IF(Anmeldung[[#This Row],[Lizenz-Nr]]=\"\",\"\",IF(ISNA(VLOOKUP(Anmeldung[[#This Row],[Lizenz-Nr]],DB_Schützen[],Schützen_DB!$D$1,FALSE)),\"Lizenznummer prüfen oder Teilnhemer in Schützen_DB erfassen\",VLOOKUP(Anmeldung[[#This Row],[Lizenz-Nr]],DB_Schützen[],Schützen_DB!$D$1,FALSE)))","v":""}]
[null,null,{"$f":"IF(Anmeldung[[#This Row],[Lizenz-Nr]]=\"\",\"\",IF(ISNA(VLOOKUP(Anmeldung[[#This Row],[Lizenz-Nr]],DB_Schützen[],Schützen_DB!$B$1,FALSE)),\"Teilnehmer\",VLOOKUP(Anmeldung[[#This Row],[Lizenz-Nr]],DB_Schützen[],Schützen_DB!$B$1,FALSE)))","v":""},{"$f":"IF(Anmeldung[[#This Row],[Lizenz-Nr]]=\"\",\"\",IF(ISNA(VLOOKUP(Anmeldung[[#This Row],[Lizenz-Nr]],DB_Schützen[],Schützen_DB!$C$1,FALSE)),\"nicht gefunden\",VLOOKUP(Anmeldung[[#This Row],[Lizenz-Nr]],DB_Schützen[],Schützen_DB!$C$1,FALSE)))","v":""},{"$f":"IF(Anmeldung[[#This Row],[Lizenz-Nr]]=\"\",\"\",IF(ISNA(VLOOKUP(Anmeldung[[#This Row],[Lizenz-Nr]],DB_Schützen[],Schützen_DB!$D$1,FALSE)),\"Lizenznummer prüfen oder Teilnhemer in Schützen_DB erfassen\",VLOOKUP(Anmeldung[[#This Row],[Lizenz-Nr]],DB_Schützen[],Schützen_DB!$D$1,FALSE)))","v":""}]
[null,null,{"$f":"IF(Anmeldung[[#This Row],[Lizenz-Nr]]=\"\",\"\",IF(ISNA(VLOOKUP(Anmeldung[[#This Row],[Lizenz-Nr]],DB_Schützen[],Schützen_DB!$B$1,FALSE)),\"Teilnehmer\",VLOOKUP(Anmeldung[[#This Row],[Lizenz-Nr]],DB_Schützen[],Schützen_DB!$B$1,FALSE)))","v":""},{"$f":"IF(Anmeldung[[#This Row],[Lizenz-Nr]]=\"\",\"\",IF(ISNA(VLOOKUP(Anmeldung[[#This Row],[Lizenz-Nr]],DB_Schützen[],Schützen_DB!$C$1,FALSE)),\"nicht gefunden\",VLOOKUP(Anmeldung[[#This Row],[Lizenz-Nr]],DB_Schützen[],Schützen_DB!$C$1,FALSE)))","v":""},{"$f":"IF(Anmeldung[[#This Row],[Lizenz-Nr]]=\"\",\"\",IF(ISNA(VLOOKUP(Anmeldung[[#This Row],[Lizenz-Nr]],DB_Schützen[],Schützen_DB!$D$1,FALSE)),\"Lizenznummer prüfen oder Teilnhemer in Schützen_DB erfassen\",VLOOKUP(Anmeldung[[#This Row],[Lizenz-Nr]],DB_Schützen[],Schützen_DB!$D$1,FALSE)))","v":""}]
[null,null,{"$f":"IF(Anmeldung[[#This Row],[Lizenz-Nr]]=\"\",\"\",IF(ISNA(VLOOKUP(Anmeldung[[#This Row],[Lizenz-Nr]],DB_Schützen[],Schützen_DB!$B$1,FALSE)),\"Teilnehmer\",VLOOKUP(Anmeldung[[#This Row],[Lizenz-Nr]],DB_Schützen[],Schützen_DB!$B$1,FALSE)))","v":""},{"$f":"IF(Anmeldung[[#This Row],[Lizenz-Nr]]=\"\",\"\",IF(ISNA(VLOOKUP(Anmeldung[[#This Row],[Lizenz-Nr]],DB_Schützen[],Schützen_DB!$C$1,FALSE)),\"nicht gefunden\",VLOOKUP(Anmeldung[[#This Row],[Lizenz-Nr]],DB_Schützen[],Schützen_DB!$C$1,FALSE)))","v":""},{"$f":"IF(Anmeldung[[#This Row],[Lizenz-Nr]]=\"\",\"\",IF(ISNA(VLOOKUP(Anmeldung[[#This Row],[Lizenz-Nr]],DB_Schützen[],Schützen_DB!$D$1,FALSE)),\"Lizenznummer prüfen oder Teilnhemer in Schützen_DB erfassen\",VLOOKUP(Anmeldung[[#This Row],[Lizenz-Nr]],DB_Schützen[],Schützen_DB!$D$1,FALSE)))","v":""}]
[null,null,{"$f":"IF(Anmeldung[[#This Row],[Lizenz-Nr]]=\"\",\"\",IF(ISNA(VLOOKUP(Anmeldung[[#This Row],[Lizenz-Nr]],DB_Schützen[],Schützen_DB!$B$1,FALSE)),\"Teilnehmer\",VLOOKUP(Anmeldung[[#This Row],[Lizenz-Nr]],DB_Schützen[],Schützen_DB!$B$1,FALSE)))","v":""},{"$f":"IF(Anmeldung[[#This Row],[Lizenz-Nr]]=\"\",\"\",IF(ISNA(VLOOKUP(Anmeldung[[#This Row],[Lizenz-Nr]],DB_Schützen[],Schützen_DB!$C$1,FALSE)),\"nicht gefunden\",VLOOKUP(Anmeldung[[#This Row],[Lizenz-Nr]],DB_Schützen[],Schützen_DB!$C$1,FALSE)))","v":""},{"$f":"IF(Anmeldung[[#This Row],[Lizenz-Nr]]=\"\",\"\",IF(ISNA(VLOOKUP(Anmeldung[[#This Row],[Lizenz-Nr]],DB_Schützen[],Schützen_DB!$D$1,FALSE)),\"Lizenznummer prüfen oder Teilnhemer in Schützen_DB erfassen\",VLOOKUP(Anmeldung[[#This Row],[Lizenz-Nr]],DB_Schützen[],Schützen_DB!$D$1,FALSE)))","v":""}]
[null,null,{"$f":"IF(Anmeldung[[#This Row],[Lizenz-Nr]]=\"\",\"\",IF(ISNA(VLOOKUP(Anmeldung[[#This Row],[Lizenz-Nr]],DB_Schützen[],Schützen_DB!$B$1,FALSE)),\"Teilnehmer\",VLOOKUP(Anmeldung[[#This Row],[Lizenz-Nr]],DB_Schützen[],Schützen_DB!$B$1,FALSE)))","v":""},{"$f":"IF(Anmeldung[[#This Row],[Lizenz-Nr]]=\"\",\"\",IF(ISNA(VLOOKUP(Anmeldung[[#This Row],[Lizenz-Nr]],DB_Schützen[],Schützen_DB!$C$1,FALSE)),\"nicht gefunden\",VLOOKUP(Anmeldung[[#This Row],[Lizenz-Nr]],DB_Schützen[],Schützen_DB!$C$1,FALSE)))","v":""},{"$f":"IF(Anmeldung[[#This Row],[Lizenz-Nr]]=\"\",\"\",IF(ISNA(VLOOKUP(Anmeldung[[#This Row],[Lizenz-Nr]],DB_Schützen[],Schützen_DB!$D$1,FALSE)),\"Lizenznummer prüfen oder Teilnhemer in Schützen_DB erfassen\",VLOOKUP(Anmeldung[[#This Row],[Lizenz-Nr]],DB_Schützen[],Schützen_DB!$D$1,FALSE)))","v":""}]
[null,null,{"$f":"IF(Anmeldung[[#This Row],[Lizenz-Nr]]=\"\",\"\",IF(ISNA(VLOOKUP(Anmeldung[[#This Row],[Lizenz-Nr]],DB_Schützen[],Schützen_DB!$B$1,FALSE)),\"Teilnehmer\",VLOOKUP(Anmeldung[[#This Row],[Lizenz-Nr]],DB_Schützen[],Schützen_DB!$B$1,FALSE)))","v":""},{"$f":"IF(Anmeldung[[#This Row],[Lizenz-Nr]]=\"\",\"\",IF(ISNA(VLOOKUP(Anmeldung[[#This Row],[Lizenz-Nr]],DB_Schützen[],Schützen_DB!$C$1,FALSE)),\"nicht gefunden\",VLOOKUP(Anmeldung[[#This Row],[Lizenz-Nr]],DB_Schützen[],Schützen_DB!$C$1,FALSE)))","v":""},{"$f":"IF(Anmeldung[[#This Row],[Lizenz-Nr]]=\"\",\"\",IF(ISNA(VLOOKUP(Anmeldung[[#This Row],[Lizenz-Nr]],DB_Schützen[],Schützen_DB!$D$1,FALSE)),\"Lizenznummer prüfen oder Teilnhemer in Schützen_DB erfassen\",VLOOKUP(Anmeldung[[#This Row],[Lizenz-Nr]],DB_Schützen[],Schützen_DB!$D$1,FALSE)))","v":""}]
[null,null,{"$f":"IF(Anmeldung[[#This Row],[Lizenz-Nr]]=\"\",\"\",IF(ISNA(VLOOKUP(Anmeldung[[#This Row],[Lizenz-Nr]],DB_Schützen[],Schützen_DB!$B$1,FALSE)),\"Teilnehmer\",VLOOKUP(Anmeldung[[#This Row],[Lizenz-Nr]],DB_Schützen[],Schützen_DB!$B$1,FALSE)))","v":""},{"$f":"IF(Anmeldung[[#This Row],[Lizenz-Nr]]=\"\",\"\",IF(ISNA(VLOOKUP(Anmeldung[[#This Row],[Lizenz-Nr]],DB_Schützen[],Schützen_DB!$C$1,FALSE)),\"nicht gefunden\",VLOOKUP(Anmeldung[[#This Row],[Lizenz-Nr]],DB_Schützen[],Schützen_DB!$C$1,FALSE)))","v":""},{"$f":"IF(Anmeldung[[#This Row],[Lizenz-Nr]]=\"\",\"\",IF(ISNA(VLOOKUP(Anmeldung[[#This Row],[Lizenz-Nr]],DB_Schützen[],Schützen_DB!$D$1,FALSE)),\"Lizenznummer prüfen oder Teilnhemer in Schützen_DB erfassen\",VLOOKUP(Anmeldung[[#This Row],[Lizenz-Nr]],DB_Schützen[],Schützen_DB!$D$1,FALSE)))","v":""}]
[null,null,{"$f":"IF(Anmeldung[[#This Row],[Lizenz-Nr]]=\"\",\"\",IF(ISNA(VLOOKUP(Anmeldung[[#This Row],[Lizenz-Nr]],DB_Schützen[],Schützen_DB!$B$1,FALSE)),\"Teilnehmer\",VLOOKUP(Anmeldung[[#This Row],[Lizenz-Nr]],DB_Schützen[],Schützen_DB!$B$1,FALSE)))","v":""},{"$f":"IF(Anmeldung[[#This Row],[Lizenz-Nr]]=\"\",\"\",IF(ISNA(VLOOKUP(Anmeldung[[#This Row],[Lizenz-Nr]],DB_Schützen[],Schützen_DB!$C$1,FALSE)),\"nicht gefunden\",VLOOKUP(Anmeldung[[#This Row],[Lizenz-Nr]],DB_Schützen[],Schützen_DB!$C$1,FALSE)))","v":""},{"$f":"IF(Anmeldung[[#This Row],[Lizenz-Nr]]=\"\",\"\",IF(ISNA(VLOOKUP(Anmeldung[[#This Row],[Lizenz-Nr]],DB_Schützen[],Schützen_DB!$D$1,FALSE)),\"Lizenznummer prüfen oder Teilnhemer in Schützen_DB erfassen\",VLOOKUP(Anmeldung[[#This Row],[Lizenz-Nr]],DB_Schützen[],Schützen_DB!$D$1,FALSE)))","v":""}]
[null,null,{"$f":"IF(Anmeldung[[#This Row],[Lizenz-Nr]]=\"\",\"\",IF(ISNA(VLOOKUP(Anmeldung[[#This Row],[Lizenz-Nr]],DB_Schützen[],Schützen_DB!$B$1,FALSE)),\"Teilnehmer\",VLOOKUP(Anmeldung[[#This Row],[Lizenz-Nr]],DB_Schützen[],Schützen_DB!$B$1,FALSE)))","v":""},{"$f":"IF(Anmeldung[[#This Row],[Lizenz-Nr]]=\"\",\"\",IF(ISNA(VLOOKUP(Anmeldung[[#This Row],[Lizenz-Nr]],DB_Schützen[],Schützen_DB!$C$1,FALSE)),\"nicht gefunden\",VLOOKUP(Anmeldung[[#This Row],[Lizenz-Nr]],DB_Schützen[],Schützen_DB!$C$1,FALSE)))","v":""},{"$f":"IF(Anmeldung[[#This Row],[Lizenz-Nr]]=\"\",\"\",IF(ISNA(VLOOKUP(Anmeldung[[#This Row],[Lizenz-Nr]],DB_Schützen[],Schützen_DB!$D$1,FALSE)),\"Lizenznummer prüfen oder Teilnhemer in Schützen_DB erfassen\",VLOOKUP(Anmeldung[[#This Row],[Lizenz-Nr]],DB_Schützen[],Schützen_DB!$D$1,FALSE)))","v":""}]
[null,null,{"$f":"IF(Anmeldung[[#This Row],[Lizenz-Nr]]=\"\",\"\",IF(ISNA(VLOOKUP(Anmeldung[[#This Row],[Lizenz-Nr]],DB_Schützen[],Schützen_DB!$B$1,FALSE)),\"Teilnehmer\",VLOOKUP(Anmeldung[[#This Row],[Lizenz-Nr]],DB_Schützen[],Schützen_DB!$B$1,FALSE)))","v":""},{"$f":"IF(Anmeldung[[#This Row],[Lizenz-Nr]]=\"\",\"\",IF(ISNA(VLOOKUP(Anmeldung[[#This Row],[Lizenz-Nr]],DB_Schützen[],Schützen_DB!$C$1,FALSE)),\"nicht gefunden\",VLOOKUP(Anmeldung[[#This Row],[Lizenz-Nr]],DB_Schützen[],Schützen_DB!$C$1,FALSE)))","v":""},{"$f":"IF(Anmeldung[[#This Row],[Lizenz-Nr]]=\"\",\"\",IF(ISNA(VLOOKUP(Anmeldung[[#This Row],[Lizenz-Nr]],DB_Schützen[],Schützen_DB!$D$1,FALSE)),\"Lizenznummer prüfen oder Teilnhemer in Schützen_DB erfassen\",VLOOKUP(Anmeldung[[#This Row],[Lizenz-Nr]],DB_Schützen[],Schützen_DB!$D$1,FALSE)))","v":""}]
[null,null,{"$f":"IF(Anmeldung[[#This Row],[Lizenz-Nr]]=\"\",\"\",IF(ISNA(VLOOKUP(Anmeldung[[#This Row],[Lizenz-Nr]],DB_Schützen[],Schützen_DB!$B$1,FALSE)),\"Teilnehmer\",VLOOKUP(Anmeldung[[#This Row],[Lizenz-Nr]],DB_Schützen[],Schützen_DB!$B$1,FALSE)))","v":""},{"$f":"IF(Anmeldung[[#This Row],[Lizenz-Nr]]=\"\",\"\",IF(ISNA(VLOOKUP(Anmeldung[[#This Row],[Lizenz-Nr]],DB_Schützen[],Schützen_DB!$C$1,FALSE)),\"nicht gefunden\",VLOOKUP(Anmeldung[[#This Row],[Lizenz-Nr]],DB_Schützen[],Schützen_DB!$C$1,FALSE)))","v":""},{"$f":"IF(Anmeldung[[#This Row],[Lizenz-Nr]]=\"\",\"\",IF(ISNA(VLOOKUP(Anmeldung[[#This Row],[Lizenz-Nr]],DB_Schützen[],Schützen_DB!$D$1,FALSE)),\"Lizenznummer prüfen oder Teilnhemer in Schützen_DB erfassen\",VLOOKUP(Anmeldung[[#This Row],[Lizenz-Nr]],DB_Schützen[],Schützen_DB!$D$1,FALSE)))","v":""}]
[null,null,{"$f":"IF(Anmeldung[[#This Row],[Lizenz-Nr]]=\"\",\"\",IF(ISNA(VLOOKUP(Anmeldung[[#This Row],[Lizenz-Nr]],DB_Schützen[],Schützen_DB!$B$1,FALSE)),\"Teilnehmer\",VLOOKUP(Anmeldung[[#This Row],[Lizenz-Nr]],DB_Schützen[],Schützen_DB!$B$1,FALSE)))","v":""},{"$f":"IF(Anmeldung[[#This Row],[Lizenz-Nr]]=\"\",\"\",IF(ISNA(VLOOKUP(Anmeldung[[#This Row],[Lizenz-Nr]],DB_Schützen[],Schützen_DB!$C$1,FALSE)),\"nicht gefunden\",VLOOKUP(Anmeldung[[#This Row],[Lizenz-Nr]],DB_Schützen[],Schützen_DB!$C$1,FALSE)))","v":""},{"$f":"IF(Anmeldung[[#This Row],[Lizenz-Nr]]=\"\",\"\",IF(ISNA(VLOOKUP(Anmeldung[[#This Row],[Lizenz-Nr]],DB_Schützen[],Schützen_DB!$D$1,FALSE)),\"Lizenznummer prüfen oder Teilnhemer in Schützen_DB erfassen\",VLOOKUP(Anmeldung[[#This Row],[Lizenz-Nr]],DB_Schützen[],Schützen_DB!$D$1,FALSE)))","v":""}]
[null,null,{"$f":"IF(Anmeldung[[#This Row],[Lizenz-Nr]]=\"\",\"\",IF(ISNA(VLOOKUP(Anmeldung[[#This Row],[Lizenz-Nr]],DB_Schützen[],Schützen_DB!$B$1,FALSE)),\"Teilnehmer\",VLOOKUP(Anmeldung[[#This Row],[Lizenz-Nr]],DB_Schützen[],Schützen_DB!$B$1,FALSE)))","v":""},{"$f":"IF(Anmeldung[[#This Row],[Lizenz-Nr]]=\"\",\"\",IF(ISNA(VLOOKUP(Anmeldung[[#This Row],[Lizenz-Nr]],DB_Schützen[],Schützen_DB!$C$1,FALSE)),\"nicht gefunden\",VLOOKUP(Anmeldung[[#This Row],[Lizenz-Nr]],DB_Schützen[],Schützen_DB!$C$1,FALSE)))","v":""},{"$f":"IF(Anmeldung[[#This Row],[Lizenz-Nr]]=\"\",\"\",IF(ISNA(VLOOKUP(Anmeldung[[#This Row],[Lizenz-Nr]],DB_Schützen[],Schützen_DB!$D$1,FALSE)),\"Lizenznummer prüfen oder Teilnhemer in Schützen_DB erfassen\",VLOOKUP(Anmeldung[[#This Row],[Lizenz-Nr]],DB_Schützen[],Schützen_DB!$D$1,FALSE)))","v":""}]
[null,null,{"$f":"IF(Anmeldung[[#This Row],[Lizenz-Nr]]=\"\",\"\",IF(ISNA(VLOOKUP(Anmeldung[[#This Row],[Lizenz-Nr]],DB_Schützen[],Schützen_DB!$B$1,FALSE)),\"Teilnehmer\",VLOOKUP(Anmeldung[[#This Row],[Lizenz-Nr]],DB_Schützen[],Schützen_DB!$B$1,FALSE)))","v":""},{"$f":"IF(Anmeldung[[#This Row],[Lizenz-Nr]]=\"\",\"\",IF(ISNA(VLOOKUP(Anmeldung[[#This Row],[Lizenz-Nr]],DB_Schützen[],Schützen_DB!$C$1,FALSE)),\"nicht gefunden\",VLOOKUP(Anmeldung[[#This Row],[Lizenz-Nr]],DB_Schützen[],Schützen_DB!$C$1,FALSE)))","v":""},{"$f":"IF(Anmeldung[[#This Row],[Lizenz-Nr]]=\"\",\"\",IF(ISNA(VLOOKUP(Anmeldung[[#This Row],[Lizenz-Nr]],DB_Schützen[],Schützen_DB!$D$1,FALSE)),\"Lizenznummer prüfen oder Teilnhemer in Schützen_DB erfassen\",VLOOKUP(Anmeldung[[#This Row],[Lizenz-Nr]],DB_Schützen[],Schützen_DB!$D$1,FALSE)))","v":""}]
[null,null,{"$f":"IF(Anmeldung[[#This Row],[Lizenz-Nr]]=\"\",\"\",IF(ISNA(VLOOKUP(Anmeldung[[#This Row],[Lizenz-Nr]],DB_Schützen[],Schützen_DB!$B$1,FALSE)),\"Teilnehmer\",VLOOKUP(Anmeldung[[#This Row],[Lizenz-Nr]],DB_Schützen[],Schützen_DB!$B$1,FALSE)))","v":""},{"$f":"IF(Anmeldung[[#This Row],[Lizenz-Nr]]=\"\",\"\",IF(ISNA(VLOOKUP(Anmeldung[[#This Row],[Lizenz-Nr]],DB_Schützen[],Schützen_DB!$C$1,FALSE)),\"nicht gefunden\",VLOOKUP(Anmeldung[[#This Row],[Lizenz-Nr]],DB_Schützen[],Schützen_DB!$C$1,FALSE)))","v":""},{"$f":"IF(Anmeldung[[#This Row],[Lizenz-Nr]]=\"\",\"\",IF(ISNA(VLOOKUP(Anmeldung[[#This Row],[Lizenz-Nr]],DB_Schützen[],Schützen_DB!$D$1,FALSE)),\"Lizenznummer prüfen oder Teilnhemer in Schützen_DB erfassen\",VLOOKUP(Anmeldung[[#This Row],[Lizenz-Nr]],DB_Schützen[],Schützen_DB!$D$1,FALSE)))","v":""}]
[null,null,{"$f":"IF(Anmeldung[[#This Row],[Lizenz-Nr]]=\"\",\"\",IF(ISNA(VLOOKUP(Anmeldung[[#This Row],[Lizenz-Nr]],DB_Schützen[],Schützen_DB!$B$1,FALSE)),\"Teilnehmer\",VLOOKUP(Anmeldung[[#This Row],[Lizenz-Nr]],DB_Schützen[],Schützen_DB!$B$1,FALSE)))","v":""},{"$f":"IF(Anmeldung[[#This Row],[Lizenz-Nr]]=\"\",\"\",IF(ISNA(VLOOKUP(Anmeldung[[#This Row],[Lizenz-Nr]],DB_Schützen[],Schützen_DB!$C$1,FALSE)),\"nicht gefunden\",VLOOKUP(Anmeldung[[#This Row],[Lizenz-Nr]],DB_Schützen[],Schützen_DB!$C$1,FALSE)))","v":""},{"$f":"IF(Anmeldung[[#This Row],[Lizenz-Nr]]=\"\",\"\",IF(ISNA(VLOOKUP(Anmeldung[[#This Row],[Lizenz-Nr]],DB_Schützen[],Schützen_DB!$D$1,FALSE)),\"Lizenznummer prüfen oder Teilnhemer in Schützen_DB erfassen\",VLOOKUP(Anmeldung[[#This Row],[Lizenz-Nr]],DB_Schützen[],Schützen_DB!$D$1,FALSE)))","v":""}]
[null,null,{"$f":"IF(Anmeldung[[#This Row],[Lizenz-Nr]]=\"\",\"\",IF(ISNA(VLOOKUP(Anmeldung[[#This Row],[Lizenz-Nr]],DB_Schützen[],Schützen_DB!$B$1,FALSE)),\"Teilnehmer\",VLOOKUP(Anmeldung[[#This Row],[Lizenz-Nr]],DB_Schützen[],Schützen_DB!$B$1,FALSE)))","v":""},{"$f":"IF(Anmeldung[[#This Row],[Lizenz-Nr]]=\"\",\"\",IF(ISNA(VLOOKUP(Anmeldung[[#This Row],[Lizenz-Nr]],DB_Schützen[],Schützen_DB!$C$1,FALSE)),\"nicht gefunden\",VLOOKUP(Anmeldung[[#This Row],[Lizenz-Nr]],DB_Schützen[],Schützen_DB!$C$1,FALSE)))","v":""},{"$f":"IF(Anmeldung[[#This Row],[Lizenz-Nr]]=\"\",\"\",IF(ISNA(VLOOKUP(Anmeldung[[#This Row],[Lizenz-Nr]],DB_Schützen[],Schützen_DB!$D$1,FALSE)),\"Lizenznummer prüfen oder Teilnhemer in Schützen_DB erfassen\",VLOOKUP(Anmeldung[[#This Row],[Lizenz-Nr]],DB_Schützen[],Schützen_DB!$D$1,FALSE)))","v":""}]
[null,null,{"$f":"IF(Anmeldung[[#This Row],[Lizenz-Nr]]=\"\",\"\",IF(ISNA(VLOOKUP(Anmeldung[[#This Row],[Lizenz-Nr]],DB_Schützen[],Schützen_DB!$B$1,FALSE)),\"Teilnehmer\",VLOOKUP(Anmeldung[[#This Row],[Lizenz-Nr]],DB_Schützen[],Schützen_DB!$B$1,FALSE)))","v":""},{"$f":"IF(Anmeldung[[#This Row],[Lizenz-Nr]]=\"\",\"\",IF(ISNA(VLOOKUP(Anmeldung[[#This Row],[Lizenz-Nr]],DB_Schützen[],Schützen_DB!$C$1,FALSE)),\"nicht gefunden\",VLOOKUP(Anmeldung[[#This Row],[Lizenz-Nr]],DB_Schützen[],Schützen_DB!$C$1,FALSE)))","v":""},{"$f":"IF(Anmeldung[[#This Row],[Lizenz-Nr]]=\"\",\"\",IF(ISNA(VLOOKUP(Anmeldung[[#This Row],[Lizenz-Nr]],DB_Schützen[],Schützen_DB!$D$1,FALSE)),\"Lizenznummer prüfen oder Teilnhemer in Schützen_DB erfassen\",VLOOKUP(Anmeldung[[#This Row],[Lizenz-Nr]],DB_Schützen[],Schützen_DB!$D$1,FALSE)))","v":""}]
[null,null,{"$f":"IF(Anmeldung[[#This Row],[Lizenz-Nr]]=\"\",\"\",IF(ISNA(VLOOKUP(Anmeldung[[#This Row],[Lizenz-Nr]],DB_Schützen[],Schützen_DB!$B$1,FALSE)),\"Teilnehmer\",VLOOKUP(Anmeldung[[#This Row],[Lizenz-Nr]],DB_Schützen[],Schützen_DB!$B$1,FALSE)))","v":""},{"$f":"IF(Anmeldung[[#This Row],[Lizenz-Nr]]=\"\",\"\",IF(ISNA(VLOOKUP(Anmeldung[[#This Row],[Lizenz-Nr]],DB_Schützen[],Schützen_DB!$C$1,FALSE)),\"nicht gefunden\",VLOOKUP(Anmeldung[[#This Row],[Lizenz-Nr]],DB_Schützen[],Schützen_DB!$C$1,FALSE)))","v":""},{"$f":"IF(Anmeldung[[#This Row],[Lizenz-Nr]]=\"\",\"\",IF(ISNA(VLOOKUP(Anmeldung[[#This Row],[Lizenz-Nr]],DB_Schützen[],Schützen_DB!$D$1,FALSE)),\"Lizenznummer prüfen oder Teilnhemer in Schützen_DB erfassen\",VLOOKUP(Anmeldung[[#This Row],[Lizenz-Nr]],DB_Schützen[],Schützen_DB!$D$1,FALSE)))","v":""}]
[null,null,{"$f":"IF(Anmeldung[[#This Row],[Lizenz-Nr]]=\"\",\"\",IF(ISNA(VLOOKUP(Anmeldung[[#This Row],[Lizenz-Nr]],DB_Schützen[],Schützen_DB!$B$1,FALSE)),\"Teilnehmer\",VLOOKUP(Anmeldung[[#This Row],[Lizenz-Nr]],DB_Schützen[],Schützen_DB!$B$1,FALSE)))","v":""},{"$f":"IF(Anmeldung[[#This Row],[Lizenz-Nr]]=\"\",\"\",IF(ISNA(VLOOKUP(Anmeldung[[#This Row],[Lizenz-Nr]],DB_Schützen[],Schützen_DB!$C$1,FALSE)),\"nicht gefunden\",VLOOKUP(Anmeldung[[#This Row],[Lizenz-Nr]],DB_Schützen[],Schützen_DB!$C$1,FALSE)))","v":""},{"$f":"IF(Anmeldung[[#This Row],[Lizenz-Nr]]=\"\",\"\",IF(ISNA(VLOOKUP(Anmeldung[[#This Row],[Lizenz-Nr]],DB_Schützen[],Schützen_DB!$D$1,FALSE)),\"Lizenznummer prüfen oder Teilnhemer in Schützen_DB erfassen\",VLOOKUP(Anmeldung[[#This Row],[Lizenz-Nr]],DB_Schützen[],Schützen_DB!$D$1,FALSE)))","v":""}]
[null,null,{"$f":"IF(Anmeldung[[#This Row],[Lizenz-Nr]]=\"\",\"\",IF(ISNA(VLOOKUP(Anmeldung[[#This Row],[Lizenz-Nr]],DB_Schützen[],Schützen_DB!$B$1,FALSE)),\"Teilnehmer\",VLOOKUP(Anmeldung[[#This Row],[Lizenz-Nr]],DB_Schützen[],Schützen_DB!$B$1,FALSE)))","v":""},{"$f":"IF(Anmeldung[[#This Row],[Lizenz-Nr]]=\"\",\"\",IF(ISNA(VLOOKUP(Anmeldung[[#This Row],[Lizenz-Nr]],DB_Schützen[],Schützen_DB!$C$1,FALSE)),\"nicht gefunden\",VLOOKUP(Anmeldung[[#This Row],[Lizenz-Nr]],DB_Schützen[],Schützen_DB!$C$1,FALSE)))","v":""},{"$f":"IF(Anmeldung[[#This Row],[Lizenz-Nr]]=\"\",\"\",IF(ISNA(VLOOKUP(Anmeldung[[#This Row],[Lizenz-Nr]],DB_Schützen[],Schützen_DB!$D$1,FALSE)),\"Lizenznummer prüfen oder Teilnhemer in Schützen_DB erfassen\",VLOOKUP(Anmeldung[[#This Row],[Lizenz-Nr]],DB_Schützen[],Schützen_DB!$D$1,FALSE)))","v":""}]
[null,null,{"$f":"IF(Anmeldung[[#This Row],[Lizenz-Nr]]=\"\",\"\",IF(ISNA(VLOOKUP(Anmeldung[[#This Row],[Lizenz-Nr]],DB_Schützen[],Schützen_DB!$B$1,FALSE)),\"Teilnehmer\",VLOOKUP(Anmeldung[[#This Row],[Lizenz-Nr]],DB_Schützen[],Schützen_DB!$B$1,FALSE)))","v":""},{"$f":"IF(Anmeldung[[#This Row],[Lizenz-Nr]]=\"\",\"\",IF(ISNA(VLOOKUP(Anmeldung[[#This Row],[Lizenz-Nr]],DB_Schützen[],Schützen_DB!$C$1,FALSE)),\"nicht gefunden\",VLOOKUP(Anmeldung[[#This Row],[Lizenz-Nr]],DB_Schützen[],Schützen_DB!$C$1,FALSE)))","v":""},{"$f":"IF(Anmeldung[[#This Row],[Lizenz-Nr]]=\"\",\"\",IF(ISNA(VLOOKUP(Anmeldung[[#This Row],[Lizenz-Nr]],DB_Schützen[],Schützen_DB!$D$1,FALSE)),\"Lizenznummer prüfen oder Teilnhemer in Schützen_DB erfassen\",VLOOKUP(Anmeldung[[#This Row],[Lizenz-Nr]],DB_Schützen[],Schützen_DB!$D$1,FALSE)))","v":""}]
[null,null,{"$f":"IF(Anmeldung[[#This Row],[Lizenz-Nr]]=\"\",\"\",IF(ISNA(VLOOKUP(Anmeldung[[#This Row],[Lizenz-Nr]],DB_Schützen[],Schützen_DB!$B$1,FALSE)),\"Teilnehmer\",VLOOKUP(Anmeldung[[#This Row],[Lizenz-Nr]],DB_Schützen[],Schützen_DB!$B$1,FALSE)))","v":""},{"$f":"IF(Anmeldung[[#This Row],[Lizenz-Nr]]=\"\",\"\",IF(ISNA(VLOOKUP(Anmeldung[[#This Row],[Lizenz-Nr]],DB_Schützen[],Schützen_DB!$C$1,FALSE)),\"nicht gefunden\",VLOOKUP(Anmeldung[[#This Row],[Lizenz-Nr]],DB_Schützen[],Schützen_DB!$C$1,FALSE)))","v":""},{"$f":"IF(Anmeldung[[#This Row],[Lizenz-Nr]]=\"\",\"\",IF(ISNA(VLOOKUP(Anmeldung[[#This Row],[Lizenz-Nr]],DB_Schützen[],Schützen_DB!$D$1,FALSE)),\"Lizenznummer prüfen oder Teilnhemer in Schützen_DB erfassen\",VLOOKUP(Anmeldung[[#This Row],[Lizenz-Nr]],DB_Schützen[],Schützen_DB!$D$1,FALSE)))","v":""}]
[null,null,{"$f":"IF(Anmeldung[[#This Row],[Lizenz-Nr]]=\"\",\"\",IF(ISNA(VLOOKUP(Anmeldung[[#This Row],[Lizenz-Nr]],DB_Schützen[],Schützen_DB!$B$1,FALSE)),\"Teilnehmer\",VLOOKUP(Anmeldung[[#This Row],[Lizenz-Nr]],DB_Schützen[],Schützen_DB!$B$1,FALSE)))","v":""},{"$f":"IF(Anmeldung[[#This Row],[Lizenz-Nr]]=\"\",\"\",IF(ISNA(VLOOKUP(Anmeldung[[#This Row],[Lizenz-Nr]],DB_Schützen[],Schützen_DB!$C$1,FALSE)),\"nicht gefunden\",VLOOKUP(Anmeldung[[#This Row],[Lizenz-Nr]],DB_Schützen[],Schützen_DB!$C$1,FALSE)))","v":""},{"$f":"IF(Anmeldung[[#This Row],[Lizenz-Nr]]=\"\",\"\",IF(ISNA(VLOOKUP(Anmeldung[[#This Row],[Lizenz-Nr]],DB_Schützen[],Schützen_DB!$D$1,FALSE)),\"Lizenznummer prüfen oder Teilnhemer in Schützen_DB erfassen\",VLOOKUP(Anmeldung[[#This Row],[Lizenz-Nr]],DB_Schützen[],Schützen_DB!$D$1,FALSE)))","v":""}]
[null,null,{"$f":"IF(Anmeldung[[#This Row],[Lizenz-Nr]]=\"\",\"\",IF(ISNA(VLOOKUP(Anmeldung[[#This Row],[Lizenz-Nr]],DB_Schützen[],Schützen_DB!$B$1,FALSE)),\"Teilnehmer\",VLOOKUP(Anmeldung[[#This Row],[Lizenz-Nr]],DB_Schützen[],Schützen_DB!$B$1,FALSE)))","v":""},{"$f":"IF(Anmeldung[[#This Row],[Lizenz-Nr]]=\"\",\"\",IF(ISNA(VLOOKUP(Anmeldung[[#This Row],[Lizenz-Nr]],DB_Schützen[],Schützen_DB!$C$1,FALSE)),\"nicht gefunden\",VLOOKUP(Anmeldung[[#This Row],[Lizenz-Nr]],DB_Schützen[],Schützen_DB!$C$1,FALSE)))","v":""},{"$f":"IF(Anmeldung[[#This Row],[Lizenz-Nr]]=\"\",\"\",IF(ISNA(VLOOKUP(Anmeldung[[#This Row],[Lizenz-Nr]],DB_Schützen[],Schützen_DB!$D$1,FALSE)),\"Lizenznummer prüfen oder Teilnhemer in Schützen_DB erfassen\",VLOOKUP(Anmeldung[[#This Row],[Lizenz-Nr]],DB_Schützen[],Schützen_DB!$D$1,FALSE)))","v":""}]
[null,null,{"$f":"IF(Anmeldung[[#This Row],[Lizenz-Nr]]=\"\",\"\",IF(ISNA(VLOOKUP(Anmeldung[[#This Row],[Lizenz-Nr]],DB_Schützen[],Schützen_DB!$B$1,FALSE)),\"Teilnehmer\",VLOOKUP(Anmeldung[[#This Row],[Lizenz-Nr]],DB_Schützen[],Schützen_DB!$B$1,FALSE)))","v":""},{"$f":"IF(Anmeldung[[#This Row],[Lizenz-Nr]]=\"\",\"\",IF(ISNA(VLOOKUP(Anmeldung[[#This Row],[Lizenz-Nr]],DB_Schützen[],Schützen_DB!$C$1,FALSE)),\"nicht gefunden\",VLOOKUP(Anmeldung[[#This Row],[Lizenz-Nr]],DB_Schützen[],Schützen_DB!$C$1,FALSE)))","v":""},{"$f":"IF(Anmeldung[[#This Row],[Lizenz-Nr]]=\"\",\"\",IF(ISNA(VLOOKUP(Anmeldung[[#This Row],[Lizenz-Nr]],DB_Schützen[],Schützen_DB!$D$1,FALSE)),\"Lizenznummer prüfen oder Teilnhemer in Schützen_DB erfassen\",VLOOKUP(Anmeldung[[#This Row],[Lizenz-Nr]],DB_Schützen[],Schützen_DB!$D$1,FALSE)))","v":""}]
[null,null,{"$f":"IF(Anmeldung[[#This Row],[Lizenz-Nr]]=\"\",\"\",IF(ISNA(VLOOKUP(Anmeldung[[#This Row],[Lizenz-Nr]],DB_Schützen[],Schützen_DB!$B$1,FALSE)),\"Teilnehmer\",VLOOKUP(Anmeldung[[#This Row],[Lizenz-Nr]],DB_Schützen[],Schützen_DB!$B$1,FALSE)))","v":""},{"$f":"IF(Anmeldung[[#This Row],[Lizenz-Nr]]=\"\",\"\",IF(ISNA(VLOOKUP(Anmeldung[[#This Row],[Lizenz-Nr]],DB_Schützen[],Schützen_DB!$C$1,FALSE)),\"nicht gefunden\",VLOOKUP(Anmeldung[[#This Row],[Lizenz-Nr]],DB_Schützen[],Schützen_DB!$C$1,FALSE)))","v":""},{"$f":"IF(Anmeldung[[#This Row],[Lizenz-Nr]]=\"\",\"\",IF(ISNA(VLOOKUP(Anmeldung[[#This Row],[Lizenz-Nr]],DB_Schützen[],Schützen_DB!$D$1,FALSE)),\"Lizenznummer prüfen oder Teilnhemer in Schützen_DB erfassen\",VLOOKUP(Anmeldung[[#This Row],[Lizenz-Nr]],DB_Schützen[],Schützen_DB!$D$1,FALSE)))","v":""}]
[null,null,{"$f":"IF(Anmeldung[[#This Row],[Lizenz-Nr]]=\"\",\"\",IF(ISNA(VLOOKUP(Anmeldung[[#This Row],[Lizenz-Nr]],DB_Schützen[],Schützen_DB!$B$1,FALSE)),\"Teilnehmer\",VLOOKUP(Anmeldung[[#This Row],[Lizenz-Nr]],DB_Schützen[],Schützen_DB!$B$1,FALSE)))","v":""},{"$f":"IF(Anmeldung[[#This Row],[Lizenz-Nr]]=\"\",\"\",IF(ISNA(VLOOKUP(Anmeldung[[#This Row],[Lizenz-Nr]],DB_Schützen[],Schützen_DB!$C$1,FALSE)),\"nicht gefunden\",VLOOKUP(Anmeldung[[#This Row],[Lizenz-Nr]],DB_Schützen[],Schützen_DB!$C$1,FALSE)))","v":""},{"$f":"IF(Anmeldung[[#This Row],[Lizenz-Nr]]=\"\",\"\",IF(ISNA(VLOOKUP(Anmeldung[[#This Row],[Lizenz-Nr]],DB_Schützen[],Schützen_DB!$D$1,FALSE)),\"Lizenznummer prüfen oder Teilnhemer in Schützen_DB erfassen\",VLOOKUP(Anmeldung[[#This Row],[Lizenz-Nr]],DB_Schützen[],Schützen_DB!$D$1,FALSE)))","v":""}]
[null,null,{"$f":"IF(Anmeldung[[#This Row],[Lizenz-Nr]]=\"\",\"\",IF(ISNA(VLOOKUP(Anmeldung[[#This Row],[Lizenz-Nr]],DB_Schützen[],Schützen_DB!$B$1,FALSE)),\"Teilnehmer\",VLOOKUP(Anmeldung[[#This Row],[Lizenz-Nr]],DB_Schützen[],Schützen_DB!$B$1,FALSE)))","v":""},{"$f":"IF(Anmeldung[[#This Row],[Lizenz-Nr]]=\"\",\"\",IF(ISNA(VLOOKUP(Anmeldung[[#This Row],[Lizenz-Nr]],DB_Schützen[],Schützen_DB!$C$1,FALSE)),\"nicht gefunden\",VLOOKUP(Anmeldung[[#This Row],[Lizenz-Nr]],DB_Schützen[],Schützen_DB!$C$1,FALSE)))","v":""},{"$f":"IF(Anmeldung[[#This Row],[Lizenz-Nr]]=\"\",\"\",IF(ISNA(VLOOKUP(Anmeldung[[#This Row],[Lizenz-Nr]],DB_Schützen[],Schützen_DB!$D$1,FALSE)),\"Lizenznummer prüfen oder Teilnhemer in Schützen_DB erfassen\",VLOOKUP(Anmeldung[[#This Row],[Lizenz-Nr]],DB_Schützen[],Schützen_DB!$D$1,FALSE)))","v":""}]

{"sheet":"Schützen_DB","index":2,"n_rows":359,"n_cols":6,"rows_kept":359}
[{"$f":"COLUMN()","v":1},{"$f":"COLUMN()","v":2},{"$f":"COLUMN()","v":3},{"$f":"COLUMN()","v":4},{"$f":"COLUMN()","v":5},{"$f":"COLUMN()","v":6}]
["Lizenz","Name","Vorname","JG","Verein","Zusammengefasst"]
[30788,"Aebischer","Mario",1988,"Teufen Standschützen",{"$f":"CONCATENATE(B3,\" \",C3,\" \",D3)","v":"Aebischer Mario 1988"}]
[10223,"Alder","Johann",2006,"Herisau Schützengesellschaft Säge",{"$f":"CONCATENATE(B4,\" \",C4,\" \",D4)","v":"Alder Johann 2006"}]
[177601,"Allenspach","Michael",1981,"Heiden Feldschützen","Allenspach Michael 1981"]
[825081,"Allenspach","Fabian",2000,"Herisau Schützengesellschaft Säge","Allenspach Fabian 2000"]
[183736,"Ammann","Hubert",1962,"Waldstatt Schützengesellschaft","Ammann Hubert 1962"]
[26262,"Angulo","Jaron",2009,"Herisau Schützenverein","Angulo Jaron 2009"]
[10754,"Aydemir","Sarp",2007,"Teufen Standschützen","Aydemir Sarp 2007"]
[105540,"Bänziger","René",1961,"Herisau Schützenverein","Bänziger René 1961"]
[100163,"Bänziger","Ulrich",1958,"Bühler Feldschützengesellschaft","Bänziger Ulrich 1958"]
[285653,"Bänziger","Lorenz",1991,"Bühler Feldschützengesellschaft","Bänziger Lorenz 1991"]
[309496,"Bänziger","Nadine",1990,"Herisau Schützenverein","Bänziger Nadine 1990"]
[332163,"Bänziger","Sandra",1992,"Herisau Schützenverein","Bänziger Sandra 1992"]
[105550,"Bichsel","Kurt",1949,"Herisau Schützenverein","Bichsel Kurt 1949"]
[22382,"Bischofberger","Till",2011,"Heiden Feldschützen","Bischofberger Till 2011"]
[206778,"Bischoff","Bruno",1944,"Heiden Feldschützen","Bischoff Bruno 1944"]
[139335,"Bleiker","Sandro",1988,"Herisau Schützengesellschaft Säge","Bleiker Sandro 1988"]
[102929,"Bleiker","Ruedi",1959,"Waldstatt Schützengesellschaft","Bleiker Ruedi 1959"]
[236085,"Bleiker","Röbi",1984,"Herisau Schützengesellschaft Säge","Bleiker Röbi 1984"]
[255010,"Bodenmann","Heinz",1988,"Gais Sportschützen","Bodenmann Heinz 1988"]
[286943,"Bollinger","Jürg",1983,"Wald AR Feldschützen","Bollinger Jürg 1983"]
[113266,"Boog","Leonz",1941,"Appenzell-Ausserrhodischer Kantonalschützenverein","Boog Leonz 1941"]
[819779,"Bösch","Aileen",2003,"Gais Sportschützen","Bösch Aileen 2003"]
[100203,"Bösch","Werner",1955,"Waldstatt Schützengesellschaft","Bösch Werner 1955"]
[948057,"Bösch","Joana",2006,"Gais Sportschützen","Bösch Joana 2006"]
[686289,"Bösch","Marco",2001,"Schwellbrunn Feldschützen","Bösch Marco 2001"]
[34975,"Brändli","Josia",1997,"Rehetobel Schützengesellschaft","Brändli Josia 1997"]
[785737,"Breitenmoser","Stefan",1996,"Gais Sportschützen","Breitenmoser Stefan 1996"]
[14427,"Breu","Raphael",1982,"Reute Feldschützen","Breu Raphael 1982"]
[860904,"Bruderer","Heinz",1966,"Rehetobel Schützengesellschaft","Bruderer Heinz 1966"]
[809131,"Bücheli","Samuel",2003,"Gais Sportschützen","Bücheli Samuel 2003"]
[105564,"Büchi","Rudolf",1944,"Herisau Schützenverein","Büchi Rudolf 1944"]
[551958,"Buck","Florian",1998,"Teufen Standschützen","Buck Florian 1998"]
[121793,"Bürkler","Paul",1964,"Teufen Standschützen","Bürkler Paul 1964"]
[212663,"Bürkler","Rolf sen.",1942,"Reute Feldschützen","Bürkler Rolf sen. 1942"]
[22909,"Buschauer","Peter",1970,"Herisau Schützenverein","Buschauer Peter 1970"]
[321816,"Camenzind","Franz",1971,"Schönengrund-Wald Schützengesellschaft","Camenzind Franz 1971"]
[316885,"Condrau","Norbert",1965,"Teufen Standschützen","Condrau Norbert 1965"]
[953904,"Coronel","Thomas",1976,"Urnäsch Pistolensektion","Coronel Thomas 1976"]
[30150,"Dähler","Vreni",1985,"Gais Sportschützen","Dähler Vreni 1985"]
[104838,"Di Bartolomeo","Gionas",2001,"Gais Sportschützen","Di Bartolomeo Gionas 2001"]
[207886,"Diem","Karl",1955,"Schönengrund-Wald Schützengesellschaft","Diem Karl 1955"]
[200666,"Diem","Rudolf",1962,"Schwellbrunn Feldschützen","Diem Rudolf 1962"]
[105570,"Diem","Peter",1946,"Herisau Schützenverein","Diem Peter 1946"]
[674068,"Dörig","Andreas",1994,"Herisau Schützengesellschaft Säge","Dörig Andreas 1994"]
[282828,"Duff","John",1956,"Schönengrund-Wald Pistolenschützen","Duff John 1956"]
[105574,"Düsel","Christian",1974,"Herisau Schützenverein","Düsel Christian 1974"]
[300124,"Dutler","Marina",1992,"Schwellbrunn Feldschützen","Dutler Marina 1992"]
[185263,"Dütschler","Marc",1986,"Waldstatt Schützengesellschaft","Dütschler Marc 1986"]
[100273,"Dütschler","Hans",1954,"Waldstatt Schützengesellschaft","Dütschler Hans 1954"]
[6623,"Edelmann","Stephan",1962,"Urnäsch Schützengesellschaft","Edelmann Stephan 1962"]
[112851,"Enz","Samuel",1986,"Gais Sportschützen","Enz Samuel 1986"]
[112323,"Eugster","Franz",1952,"Heiden Feldschützen","Eugster Franz 1952"]
[27988,"Eugster","Marina",2007,"Reute Feldschützen","Eugster Marina 2007"]
[514392,"Eugster","Stefan",1997,"Teufen Standschützen","Eugster Stefan 1997"]
[788366,"Eugster","Mike",2001,"Reute Feldschützen","Eugster Mike 2001"]
[206012,"Eugster","Ernst",1958,"Schönengrund-Wald Schützengesellschaft","Eugster Ernst 1958"]
[329123,"Eugster","Thomas",1996,"Stein AR Schützenverein Stein-Hundwil","Eugster Thomas 1996"]
[212677,"Eugster","Hanspeter",1950,"Appenzell-Ausserrhodischer Kantonalschützenverein","Eugster Hanspeter 1950"]
[103123,"Fitze","Roger",1964,"Teufen Standschützen","Fitze Roger 1964"]
[549232,"Fitzi","Alex",1998,"Gais Sportschützen","Fitzi Alex 1998"]
[327657,"Fitzi","Reto",1990,"Schönengrund-Wald Schützengesellschaft","Fitzi Reto 1990"]
[30789,"Forrer","Sarah",1997,"Teufen Standschützen","Forrer Sarah 1997"]
[6770,"Förtner","Silas",2000,"Teufen Pistolen Sportschützenverein","Förtner Silas 2000"]
[148235,"Frehner","Walter",1971,"Bühler Feldschützengesellschaft","Frehner Walter 1971"]
[200681,"Frehner","Hans",1969,"Schwellbrunn Feldschützen","Frehner Hans 1969"]
[156006,"Frehner","Werner",1945,"Rehetobel Schützengesellschaft",{"$f":"CONCATENATE(B68,\" \",C68,\" \",D68)","v":"Frehner Werner 1945"}]
[227572,"Frehner","Christian",1961,"Urnäsch Schützengesellschaft","Frehner Christian 1961"]
[207857,"Frei","Hansruedi",1952,"Schönengrund-Wald Schützengesellschaft","Frei Hansruedi 1952"]
[156023,"Freuler","Kaspar",1940,"Rehetobel Schützengesellschaft","Freuler Kaspar 1940"]
[982179,"Frischknecht","Adrian",2004,"Urnäsch Schützengesellschaft","Frischknecht Adrian 2004"]
[876922,"Frischknecht","Fabian",2001,"Schwellbrunn Feldschützen","Frischknecht Fabian 2001"]
[187343,"Frischknecht","Hanskoni",1974,"Urnäsch Schützengesellschaft","Frischknecht Hanskoni 1974"]
[183846,"Frischknecht","Emil",1954,"Waldstatt Schützengesellschaft","Frischknecht Emil 1954"]
[3552,"Fuchs","Diemo",2004,"Gais Sportschützen","Fuchs Diemo 2004"]
[10232,"Gansner","Christian",2008,"Herisau Schützengesellschaft Säge","Gansner Christian 2008"]
[832796,"Gantenbein","Manuel",2005,"Reute Feldschützen","Gantenbein Manuel 2005"]
[207884,"Gantenbein","Hans",1947,"Schönengrund-Wald Schützengesellschaft","Gantenbein Hans 1947"]
[152785,"Gantenbein","Ulrich",1951,"Teufen Standschützen","Gantenbein Ulrich 1951"]
[102792,"Giezendanner","Marcel",1975,"Wald AR Feldschützen","Giezendanner Marcel 1975"]
[532641,"Gigon","Alain Robert",1965,"Rehetobel Schützengesellschaft","Gigon Alain Robert 1965"]
[28343,"Gisler","Lukas",2013,"Herisau Schützengesellschaft Säge","Gisler Lukas 2013"]
[210813,"Gisler","Willi",1985,"Herisau Schützengesellschaft Säge","Gisler Willi 1985"]
[102794,"Gloor","Dunja",1977,"Wald AR Feldschützen","Gloor Dunja 1977"]
[746335,"Graf","Luca",2001,"Heiden Feldschützen","Graf Luca 2001"]
[936628,"Graf","Martin",2008,"Heiden Feldschützen","Graf Martin 2008"]
[214060,"Graf","Andreas",1973,"Heiden Feldschützen","Graf Andreas 1973"]
[30785,"Graf","Monique",1988,"Gais Sportschützen","Graf Monique 1988"]
[225962,"Graf","Hansruedi",1967,"Heiden Feldschützen","Graf Hansruedi 1967"]
[225958,"Graf","Bernhard",1974,"Heiden Feldschützen","Graf Bernhard 1974"]
[226405,"Graf","Martin",1986,"Heiden Feldschützen","Graf Martin 1986"]
[11167,"Graf","Jasmin",2010,"Heiden Feldschützen","Graf Jasmin 2010"]
[975507,"Graf","Nicole",1969,"Schönengrund-Wald Schützengesellschaft","Graf Nicole 1969"]
[214726,"Graf","Andreas",1984,"Teufen Standschützen","Graf Andreas 1984"]
[545425,"Gründler","Samuel",1996,"Wald AR Feldschützen","Gründler Samuel 1996"]
[326686,"Gugger","Thomas",1961,"Gais Sportschützen","Gugger Thomas 1961"]
[827156,"Gut","Samuel",1998,"Teufen Standschützen","Gut Samuel 1998"]
[906902,"Gut","Simon",2002,"Teufen Standschützen","Gut Simon 2002"]
[970828,"Hartmann","Falk",1966,"Reute Feldschützen","Hartmann Falk 1966"]
[152795,"Hasler","Georg",1956,"Rehetobel Schützengesellschaft","Hasler Georg 1956"]
[515702,"Hauser-Bleiker","Sabrina",1992,"Herisau Schützengesellschaft Säge","Hauser-Bleiker Sabrina 1992"]
[255553,"Hautle","Bruno",1951,"Reute Feldschützen","Hautle Bruno 1951"]
[310723,"Heierli","Andreas",1979,"Wald AR Feldschützen","Heierli Andreas 1979"]
[12318,"Heierli","Leonie",2010,"Reute Feldschützen","Heierli Leonie 2010"]
[2287,"Heierli","Jonas",2008,"Reute Feldschützen","Heierli Jonas 2008"]
[148238,"Heim","Remo",1974,"Bühler Feldschützengesellschaft","Heim Remo 1974"]
[31104,"Heim","Denis",2003,"Herisau Schützenverein","Heim Denis 2003"]
[909660,"Heinze","Peter",1969,"Schönengrund-Wald Pistolenschützen","Heinze Peter 1969"]
[105737,"Hersche","Hansruedi",1973,"Herisau Schützenverein","Hersche Hansruedi 1973"]
[702279,"Heyer","Maurus",1997,"Wald AR Feldschützen","Heyer Maurus 1997"]
[1587,"Hofer","Marco",2005,"Schwellbrunn Feldschützen","Hofer Marco 2005"]
[112857,"Höhener","Werner",1956,"Gais Sportschützen","Höhener Werner 1956"]
[2290,"Hohl","Levi",2009,"Reute Feldschützen","Hohl Levi 2009"]
[10854,"Hohl","Allen",2009,"Teufen Standschützen","Hohl Allen 2009"]
[36070,"Holdener","Manfred",1973,"Waldstatt Schützengesellschaft","Holdener Manfred 1973"]
[113004,"Holderegger","Jakob",1946,"Waldstatt Schützengesellschaft","Holderegger Jakob 1946"]
[212688,"Holderegger","Manfred",1965,"Reute Feldschützen","Holderegger Manfred 1965"]
[27992,"Holenstein","Luis",2013,"Reute Feldschützen","Holenstein Luis 2013"]
[125967,"Hottinger","Daniel",1963,"Heiden Feldschützen","Hottinger Daniel 1963"]
[647603,"Hottinger","Pascal",1996,"Heiden Feldschützen","Hottinger Pascal 1996"]
[152796,"Hubmann","Kurt",1954,"Rehetobel Schützengesellschaft","Hubmann Kurt 1954"]
[183868,"Hug","Michael",1981,"Waldstatt Schützengesellschaft","Hug Michael 1981"]
[22672,"Hunter","Benjamin",1974,"Herisau Schützenverein","Hunter Benjamin 1974"]
[112331,"Isler","Thomas",1971,"Heiden Feldschützen","Isler Thomas 1971"]
[839894,"Isler","Matthias",2005,"Heiden Feldschützen","Isler Matthias 2005"]
[875778,"Isler","Natalia",2007,"Heiden Feldschützen","Isler Natalia 2007"]
[10233,"Iten","Fabian",2008,"Herisau Schützengesellschaft Säge","Iten Fabian 2008"]
[326933,"Jäggi","Fabian",1992,"Rehetobel Schützengesellschaft","Jäggi Fabian 1992"]
[18545,"Januzi","Bekim",1982,"Schönengrund-Wald Schützengesellschaft","Januzi Bekim 1982"]
[148239,"Jeger","Ruedi",1937,"Bühler Feldschützengesellschaft","Jeger Ruedi 1937"]
[906904,"Kaiser","Jennifer",2000,"Teufen Standschützen",{"$f":"CONCATENATE(B132,\" \",C132,\" \",D132)","v":"Kaiser Jennifer 2000"}]
[943548,"Kaiser","Florian",2003,"Teufen Standschützen","Kaiser Florian 2003"]
[102946,"Kälin","Louis",1946,"Appenzell-Ausserrhodischer Kantonalschützenverein","Kälin Louis 1946"]
[943893,"Kappeler","Tristan",2009,"Heiden Feldschützen","Kappeler Tristan 2009"]
[13966,"Kappeler","Reinhard",1965,"Heiden Feldschützen","Kappeler Reinhard 1965"]
[148240,"Katschnig","Alois",1963,"Bühler Feldschützengesellschaft","Katschnig Alois 1963"]
[736540,"Katschnig","Tamara",2002,"Gais Sportschützen","Katschnig Tamara 2002"]
[19428,"Kellenberger","Fabio",2012,"Heiden Feldschützen","Kellenberger Fabio 2012"]
[104130,"Kellenberger","Priska",1960,"Rehetobel Schützengesellschaft","Kellenberger Priska 1960"]
[156017,"Kellenberger","Markus",1962,"Rehetobel Schützengesellschaft","Kellenberger Markus 1962"]
[105746,"Keller","Matthias",1957,"Herisau Schützenverein","Keller Matthias 1957"]
[10234,"Keller","David",2008,"Herisau Schützengesellschaft Säge","Keller David 2008"]
[102131,"Kessler","Hanspeter",1945,"Herisau Schützengesellschaft Säge","Kessler Hanspeter 1945"]
[977911,"Kessler","Florian",2005,"Herisau Schützengesellschaft Säge","Kessler Florian 2005"]
[941477,"Kessler","Benjamin",2005,"Herisau Schützengesellschaft Säge","Kessler Benjamin 2005"]
[4503,"Kessler","Stephanie",1993,"Herisau Schützenverein","Kessler Stephanie 1993"]
[549590,"Kessler","Alex",1995,"Herisau Schützenverein","Kessler Alex 1995"]
[270858,"Kloukas","Wasilios",1983,"Herisau Schützengesellschaft Säge","Kloukas Wasilios 1983"]
[103155,"Knöfler","Stefan",1980,"Teufen Standschützen","Knöfler Stefan 1980"]
[998213,"Knöfler","Mateo",2010,"Teufen Standschützen","Knöfler Mateo 2010"]
[212711,"Knöfler","Markus",1975,"Reute Feldschützen","Knöfler Markus 1975"]
[103151,"Knöfler","Fredy",1950,"Teufen Pistolen Sportschützenverein","Knöfler Fredy 1950"]
[279523,"Knöpfel","Jakob",1989,"Stein AR Schützenverein Stein-Hundwil","Knöpfel Jakob 1989"]
[208617,"Knöpfel","Heinrich",1963,"Schönengrund-Wald Schützengesellschaft","Knöpfel Heinrich 1963"]
[208334,"Knöpfel","Robert",1957,"Schönengrund-Wald Schützengesellschaft","Knöpfel Robert 1957"]
[10236,"Knupp","Andreas",2008,"Herisau Schützengesellschaft Säge","Knupp Andreas 2008"]
[10238,"Knupp","Tobias",2008,"Herisau Schützengesellschaft Säge","Knupp Tobias 2008"]
[226301,"Kobler","Mark",1985,"Heiden Feldschützen","Kobler Mark 1985"]
[225411,"Kobler","Silvano Franz",1960,"Heiden Feldschützen","Kobler Silvano Franz 1960"]
[226400,"Kobler","Stefan",1983,"Heiden Feldschützen","Kobler Stefan 1983"]
[36331,"Kolb","Peter",1967,"Urnäsch Schützengesellschaft","Kolb Peter 1967"]
[100204,"Koller","Andreas",1954,"Appenzell-Ausserrhodischer Kantonalschützenverein","Koller Andreas 1954"]
[221826,"Koller","Remo",1988,"Waldstatt Schützengesellschaft","Koller Remo 1988"]
[117512,"Krüsi","Markus",1980,"Waldstatt Schützengesellschaft","Krüsi Markus 1980"]
[463809,"Kuchler","Jennifer",1993,"Herisau Schützenverein","Kuchler Jennifer 1993"]
[30784,"Küchler","Johann",2008,"Herisau Schützenverein","Küchler Johann 2008"]
[225412,"Künzler","Hans",1959,"Heiden Feldschützen","Künzler Hans 1959"]
[784675,"Künzler","Simona",2003,"Heiden Feldschützen","Künzler Simona 2003"]
[833643,"Labiano","Demetrio",1974,"Schönengrund-Wald Schützengesellschaft","Labiano Demetrio 1974"]
[486600,"Lämmler","Fabian",1989,"Schwellbrunn Feldschützen","Lämmler Fabian 1989"]
[397364,"Lämmler-Hauser","Maja",1991,"Schwellbrunn Feldschützen","Lämmler-Hauser Maja 1991"]
[19034,"Lang","Angelina",2006,"Herisau Schützenverein","Lang Angelina 2006"]
[812891,"Langenauer","Jan",2004,"Urnäsch Schützengesellschaft","Langenauer Jan 2004"]
[230323,"Langenauer","Alfred",1950,"Gais Sportschützen","Langenauer Alfred 1950"]
[227569,"Langenauer","Urs",1971,"Urnäsch Schützengesellschaft","Langenauer Urs 1971"]
[14328,"Lath","Florian",1985,"Reute Feldschützen","Lath Florian 1985"]
[890142,"Lehmann","Gerhard",1948,"Teufen Pistolen Sportschützenverein","Lehmann Gerhard 1948"]
[905668,"Locher","Mike",2002,"Herisau Schützengesellschaft Säge","Locher Mike 2002"]
[112579,"Looser","Serge",1979,"Heiden Feldschützen","Looser Serge 1979"]
[261545,"Lutz","Diego",1984,"Schwellbrunn Feldschützen","Lutz Diego 1984"]
[236080,"Lutz","Hans",1984,"Herisau Schützengesellschaft Säge","Lutz Hans 1984"]
[946662,"Lutz","Thomas",2007,"Herisau Schützengesellschaft Säge","Lutz Thomas 2007"]
[294300,"Lutz-Bretscher","Heidi",1983,"Schwellbrunn Feldschützen","Lutz-Bretscher Heidi 1983"]
[26100,"Manser","Valentin",2009,"Teufen Standschützen","Manser Valentin 2009"]
[905665,"Manser","Marino",2003,"Herisau Schützengesellschaft Säge","Manser Marino 2003"]
[827426,"Manser","Urs",2003,"Teufen Standschützen","Manser Urs 2003"]
[10239,"Manser","Melanie",2008,"Herisau Schützengesellschaft Säge","Manser Melanie 2008"]
[105752,"Marolf","Walter",1944,"Herisau Schützenverein","Marolf Walter 1944"]
[184061,"Marti","Andreas",1977,"Waldstatt Schützengesellschaft","Marti Andreas 1977"]
[184062,"Marti","Werner",1952,"Waldstatt Schützengesellschaft","Marti Werner 1952"]
[310067,"Mathis","Maria",1988,"Urnäsch Schützengesellschaft","Mathis Maria 1988"]
[12319,"Matter","Norina",2010,"Reute Feldschützen","Matter Norina 2010"]
[258739,"Meier","Christian",1984,"Reute Feldschützen","Meier Christian 1984"]
[212715,"Meier","Gerda",1954,"Reute Feldschützen","Meier Gerda 1954"]
[258743,"Meier","Werner",1983,"Reute Feldschützen",{"$f":"CONCATENATE(B196,\" \",C196,\" \",D196)","v":"Meier Werner 1983"}]
[308094,"Meier","Daniel",1987,"Reute Feldschützen","Meier Daniel 1987"]
[258741,"Meier","Werner",1956,"Reute Feldschützen","Meier Werner 1956"]
[148241,"Meier","Alfred",1943,"Bühler Feldschützengesellschaft","Meier Alfred 1943"]
[222337,"Meier","Jakob",1970,"Stein AR Schützenverein Stein-Hundwil","Meier Jakob 1970"]
[212714,"Meier","Kurt",1942,"Reute Feldschützen","Meier Kurt 1942"]
[905666,"Meier","Astrid",2002,"Herisau Schützengesellschaft Säge","Meier Astrid 2002"]
[148242,"Meier","Christoph",1974,"Bühler Feldschützengesellschaft","Meier Christoph 1974"]
[31421,"Meier","Miriam",1977,"Bühler Feldschützengesellschaft","Meier Miriam 1977"]
[102953,"Menzi","Fritz",1945,"Herisau Schützengesellschaft Säge","Menzi Fritz 1945"]
[102787,"Merz","Ueli",1968,"Wald AR Feldschützen","Merz Ueli 1968"]
[843458,"Merz","Nathanael",2002,"Rehetobel Schützengesellschaft","Merz Nathanael 2002"]
[187316,"Mettler","Josua",1959,"Urnäsch Schützengesellschaft","Mettler Josua 1959"]
[187329,"Mettler","Christian",1980,"Urnäsch Schützengesellschaft","Mettler Christian 1980"]
[27295,"Michel","Dennis",2010,"Herisau Schützenverein","Michel Dennis 2010"]
[112856,"Mohsin-Höhener","Sandra",1987,"Gais Sportschützen","Mohsin-Höhener Sandra 1987"]
[891365,"Moser","Urs",1970,"Rehetobel Schützengesellschaft","Moser Urs 1970"]
[848161,"Moser","Lukas",2002,"Rehetobel Schützengesellschaft","Moser Lukas 2002"]
[225628,"Mosimann","Franz",1949,"Gais Sportschützen","Mosimann Franz 1949"]
[184066,"Müller","Patrick",1977,"Waldstatt Schützengesellschaft","Müller Patrick 1977"]
[106095,"Müller","Marcel",1977,"Stein AR Schützenverein Stein-Hundwil","Müller Marcel 1977"]
[327989,"Müller","Lukas",1995,"Stein AR Schützenverein Stein-Hundwil","Müller Lukas 1995"]
[589647,"Musche","Peter",1988,"Reute Feldschützen","Musche Peter 1988"]
[23327,"Musumeci","Roberto",1973,"Reute Feldschützen","Musumeci Roberto 1973"]
[184068,"Nägeli","Walter",1947,"Waldstatt Schützengesellschaft","Nägeli Walter 1947"]
[15203,"Nef","Emil",1974,"Urnäsch Schützengesellschaft","Nef Emil 1974"]
[148245,"Neff","Bruno",1944,"Bühler Feldschützengesellschaft","Neff Bruno 1944"]
[102820,"Niederer","Miriam",1978,"Teufen Standschützen","Niederer Miriam 1978"]
[200658,"Niederer","Bruno",1942,"Schwellbrunn Feldschützen","Niederer Bruno 1942"]
[549733,"Niederer","Hansjörg",1962,"Reute Feldschützen","Niederer Hansjörg 1962"]
[319922,"Niederer","Joel",1991,"Reute Feldschützen","Niederer Joel 1991"]
[830426,"Niedermann","Luca",1996,"Herisau Schützengesellschaft Säge","Niedermann Luca 1996"]
[13726,"Oertle","Walter",1975,"Urnäsch Schützengesellschaft","Oertle Walter 1975"]
[946734,"Oggier","Stefan",2000,"Reute Feldschützen","Oggier Stefan 2000"]
[515824,"Paganini","Noah",1996,"Rehetobel Schützengesellschaft","Paganini Noah 1996"]
[923831,"Peter","René",1999,"Reute Feldschützen","Peter René 1999"]
[310785,"Pfister","Benno",1960,"Gais Sportschützen","Pfister Benno 1960"]
[306711,"Pfister","Cornel",1990,"Gais Sportschützen","Pfister Cornel 1990"]
[306710,"Pfister","Adrian",1991,"Gais Sportschützen","Pfister Adrian 1991"]
[770649,"Pike-Weiersmüller","Keith",1946,"Schönengrund-Wald Schützengesellschaft","Pike-Weiersmüller Keith 1946"]
[1098,"Pioda","Taiko",2006,"Teufen Standschützen","Pioda Taiko 2006"]
[16575,"Preisig","Patrick",1975,"Schönengrund-Wald Schützengesellschaft","Preisig Patrick 1975"]
[200657,"Preisig","Anton",1970,"Schwellbrunn Feldschützen","Preisig Anton 1970"]
[514391,"Preisig","Silvan",1998,"Teufen Standschützen","Preisig Silvan 1998"]
[102822,"Preisig","Bruno",1957,"Appenzell-Ausserrhodischer Kantonalschützenverein","Preisig Bruno 1957"]
[200825,"Preisig","Karin",1984,"Schwellbrunn Feldschützen","Preisig Karin 1984"]
[102824,"Preisig","Ueli",1964,"Teufen Standschützen","Preisig Ueli 1964"]
[201581,"Preisig","Roman",1982,"Schwellbrunn Feldschützen","Preisig Roman 1982"]
[212718,"Preisig","Christian",1981,"Reute Feldschützen","Preisig Christian 1981"]
[226303,"Probst","Richard",1985,"Heiden Feldschützen","Probst Richard 1985"]
[200655,"Ramsauer","Ernst",1968,"Schwellbrunn Feldschützen","Ramsauer Ernst 1968"]
[194033,"Raschle","Christoph",1963,"Urnäsch Schützengesellschaft","Raschle Christoph 1963"]
[819781,"Raschle","Stefan",2003,"Schwellbrunn Feldschützen","Raschle Stefan 2003"]
[200644,"Raschle","Peter",1969,"Schwellbrunn Feldschützen","Raschle Peter 1969"]
[2794,"Raschle","Cyrill",2008,"Schwellbrunn Feldschützen","Raschle Cyrill 2008"]
[919765,"Raschle","Marcel",2005,"Schwellbrunn Feldschützen","Raschle Marcel 2005"]
[110218,"Rebsamen","Beat",1961,"Urnäsch Schützengesellschaft","Rebsamen Beat 1961"]
[102828,"Rechsteiner","Walter",1954,"Teufen Pistolen Sportschützenverein","Rechsteiner Walter 1954"]
[200627,"Reutegger","Hansueli",1966,"Schwellbrunn Feldschützen","Reutegger Hansueli 1966"]
[514514,"Reutegger","Sandro",1996,"Schwellbrunn Feldschützen","Reutegger Sandro 1996"]
[726069,"Reutegger","Stefanie",1999,"Schwellbrunn Feldschützen","Reutegger Stefanie 1999"]
[937045,"Rieger","Uwe",1962,"Reute Feldschützen","Rieger Uwe 1962"]
[184073,"Ritter","Wendelin",1948,"Waldstatt Schützengesellschaft","Ritter Wendelin 1948"]
[222883,"Rohner","Walter",1943,"Herisau Schützengesellschaft Säge","Rohner Walter 1943"]
[106801,"Rohner","Jakob",1953,"Herisau Schützenverein",{"$f":"CONCATENATE(B260,\" \",C260,\" \",D260)","v":"Rohner Jakob 1953"}]
[188439,"Roth","Ulrich",1978,"Schwellbrunn Feldschützen","Roth Ulrich 1978"]
[986591,"Rüegg","Pascal",2009,"Teufen Standschützen","Rüegg Pascal 2009"]
[36959,"Ruppanner","Philipp",2000,"Reute Feldschützen","Ruppanner Philipp 2000"]
[103016,"Rusch","Heinz",1966,"Herisau, Pistolenschützen Herisau-Waldstatt","Rusch Heinz 1966"]
[200646,"Rutz","Thomas",1979,"Schwellbrunn Feldschützen","Rutz Thomas 1979"]
[21627,"Saupe","Wim",2010,"Teufen Standschützen","Saupe Wim 2010"]
[310720,"Scherrer","Marina",1991,"Wald AR Feldschützen","Scherrer Marina 1991"]
[35056,"Scheuzger","Tobias",1991,"Teufen Standschützen","Scheuzger Tobias 1991"]
[512907,"Schläpfer","Dominik",1995,"Gais Sportschützen","Schläpfer Dominik 1995"]
[112582,"Schläpfer","Werner",1945,"Reute Feldschützen","Schläpfer Werner 1945"]
[21722,"Schläpfer","Fynn",2012,"Heiden Feldschützen","Schläpfer Fynn 2012"]
[295786,"Schläpfer","Barbara",1993,"Gais Sportschützen","Schläpfer Barbara 1993"]
[397365,"Schläpfer","Andreas",1992,"Schwellbrunn Feldschützen","Schläpfer Andreas 1992"]
[283150,"Schläpfer","Alfred",1985,"Schwellbrunn Feldschützen","Schläpfer Alfred 1985"]
[522301,"Schmid","Jörg",1965,"Urnäsch Schützengesellschaft","Schmid Jörg 1965"]
[102786,"Schmid","Raymond",1966,"Wald AR Feldschützen","Schmid Raymond 1966"]
[825101,"Schmid","Samuel",1999,"Herisau Schützengesellschaft Säge","Schmid Samuel 1999"]
[148248,"Schneider","Bruno",1953,"Bühler Feldschützengesellschaft","Schneider Bruno 1953"]
[104789,"Schneider","Ueli",1985,"Teufen Standschützen","Schneider Ueli 1985"]
[108105,"Schöb","Werner",1960,"Herisau Schützenverein","Schöb Werner 1960"]
[20832,"Schoch","Sara",2008,"Schwellbrunn Feldschützen","Schoch Sara 2008"]
[275931,"Schweizer","Jakob",1973,"Bühler Feldschützengesellschaft","Schweizer Jakob 1973"]
[751492,"Schweizer","Patrick",2002,"Gais Sportschützen","Schweizer Patrick 2002"]
[829070,"Schweizer","Alex",1999,"Gais Sportschützen","Schweizer Alex 1999"]
[830017,"Schwizer","Michael",2000,"Schwellbrunn Feldschützen","Schwizer Michael 2000"]
[917832,"Segala","Remo",1970,"Teufen Pistolen Sportschützenverein","Segala Remo 1970"]
[27991,"Seitz","Jessica",2004,"Reute Feldschützen","Seitz Jessica 2004"]
[909525,"Seng","Martin",1963,"Reute Feldschützen","Seng Martin 1963"]
[10759,"Senn","Alessija",2007,"Teufen Standschützen","Senn Alessija 2007"]
[784149,"Sennhauser","Lars",2001,"Rehetobel Schützengesellschaft","Sennhauser Lars 2001"]
[10756,"Sick","Leon",2007,"Teufen Standschützen","Sick Leon 2007"]
[807204,"Sieber","Dominic",1997,"Gais Sportschützen","Sieber Dominic 1997"]
[222888,"Siegrist","Heinz",1949,"Herisau Schützengesellschaft Säge","Siegrist Heinz 1949"]
[295873,"Signer","Robin",1992,"Herisau Schützenverein","Signer Robin 1992"]
[104795,"Soldera","Giovanni",1952,"Wald AR Feldschützen","Soldera Giovanni 1952"]
[362883,"Sommer","Sascha",1983,"Herisau Schützengesellschaft Säge","Sommer Sascha 1983"]
[784671,"Sonderegger","Raphael",2000,"Heiden Feldschützen","Sonderegger Raphael 2000"]
[104134,"Sonderegger","Peter",1952,"Rehetobel Schützengesellschaft","Sonderegger Peter 1952"]
[829381,"Sonderegger","Oliver",2002,"Heiden Feldschützen","Sonderegger Oliver 2002"]
[307145,"Sprenger","Christian",1993,"Gais Sportschützen","Sprenger Christian 1993"]
[766644,"Stalder","Josia",1994,"Gais Sportschützen","Stalder Josia 1994"]
[785409,"Staub","Timo",2003,"Teufen Standschützen","Staub Timo 2003"]
[986592,"Staub","Nico",2010,"Teufen Standschützen","Staub Nico 2010"]
[102830,"Staub","Willi",1967,"Teufen Standschützen","Staub Willi 1967"]
[11339,"Strassmann","Ramon",2008,"Reute Feldschützen","Strassmann Ramon 2008"]
[18061,"Streuli","Ralph",1977,"Gais Sportschützen","Streuli Ralph 1977"]
[18062,"Streuli","David",2007,"Gais Sportschützen","Streuli David 2007"]
[327987,"Stricker","Tobias",1996,"Stein AR Schützenverein Stein-Hundwil","Stricker Tobias 1996"]
[269731,"Stricker","Hansueli",1986,"Herisau Schützenverein","Stricker Hansueli 1986"]
[301865,"Stucki","Benjamin",1987,"Teufen Standschützen","Stucki Benjamin 1987"]
[152821,"Studerus","Martin",1972,"Bühler Feldschützengesellschaft","Studerus Martin 1972"]
[156068,"Sturzenegger","Emil",1934,"Rehetobel Schützengesellschaft","Sturzenegger Emil 1934"]
[460165,"Sturzenegger","Edi",1966,"Reute Feldschützen","Sturzenegger Edi 1966"]
[787897,"Sturzenegger","Joël",2004,"Reute Feldschützen","Sturzenegger Joël 2004"]
[148250,"Sumi","Werner",1938,"Bühler Feldschützengesellschaft","Sumi Werner 1938"]
[148260,"Sumi","Daniel",1976,"Bühler Feldschützengesellschaft","Sumi Daniel 1976"]
[976643,"Sutter","Philip",2006,"Rehetobel Schützengesellschaft","Sutter Philip 2006"]
[112616,"Sutter","Daniel",1977,"Urnäsch Schützengesellschaft","Sutter Daniel 1977"]
[187014,"Sutter","Ludwig",1960,"Urnäsch Schützengesellschaft","Sutter Ludwig 1960"]
[32220,"Sutter","Patrick",1983,"Urnäsch Schützengesellschaft","Sutter Patrick 1983"]
[20167,"Sutter","Christian",1973,"Rehetobel Schützengesellschaft","Sutter Christian 1973"]
[832205,"Tanner","Manuel",2004,"Waldstatt Schützengesellschaft","Tanner Manuel 2004"]
[184087,"Tanner","Walter",1961,"Waldstatt Schützengesellschaft","Tanner Walter 1961"]
[184085,"Tanner","Martin",1977,"Waldstatt Schützengesellschaft",{"$f":"CONCATENATE(B324,\" \",C324,\" \",D324)","v":"Tanner Martin 1977"}]
[184084,"Tanner","Mario",1979,"Waldstatt Schützengesellschaft","Tanner Mario 1979"]
[225975,"Tobler","Hansjörg",1967,"Heiden Feldschützen","Tobler Hansjörg 1967"]
[538985,"Troxler","Daniel",1992,"Gais Sportschützen","Troxler Daniel 1992"]
[706239,"Vetsch","Damian",1993,"Teufen Standschützen","Vetsch Damian 1993"]
[102835,"Vetsch","Christian",1963,"Teufen Standschützen","Vetsch Christian 1963"]
[258007,"Vetter","Silvan",1988,"Teufen Standschützen","Vetter Silvan 1988"]
[34350,"von Allmen","Karin",2005,"Reute Feldschützen","von Allmen Karin 2005"]
[212733,"Walser","Hanspeter",1945,"Reute Feldschützen","Walser Hanspeter 1945"]
[102115,"Wehrlin","Andreas",1962,"Schwellbrunn Feldschützen","Wehrlin Andreas 1962"]
[224946,"Weiler","Andreas",1982,"Schwellbrunn Feldschützen","Weiler Andreas 1982"]
[148232,"Weishaupt","Peter",1976,"Bühler Feldschützengesellschaft","Weishaupt Peter 1976"]
[614763,"Weiss","Christian",1958,"Bühler Feldschützengesellschaft","Weiss Christian 1958"]
[253765,"Weiss","Valentin",1985,"Urnäsch Schützengesellschaft","Weiss Valentin 1985"]
[962051,"Werner","Alea Cyara",2001,"Gais Sportschützen","Werner Alea Cyara 2001"]
[942059,"Werner","Mathias",1974,"Gais Sportschützen","Werner Mathias 1974"]
[113162,"Wick","Werner",1955,"Heiden Feldschützen","Wick Werner 1955"]
[740373,"Widmer","Daniel",1961,"Schwellbrunn Feldschützen","Widmer Daniel 1961"]
[744447,"Widmer","Lukas",1999,"Schwellbrunn Feldschützen","Widmer Lukas 1999"]
[1585,"Widmer","Ramon",2006,"Schwellbrunn Feldschützen","Widmer Ramon 2006"]
[881286,"Wild","Michael",1964,"Gais Sportschützen","Wild Michael 1964"]
[316040,"Wildermuth","Christian",1966,"Schwellbrunn Feldschützen","Wildermuth Christian 1966"]
[526178,"Wyss","Reto",1973,"Bühler Feldschützengesellschaft","Wyss Reto 1973"]
[954152,"Zaller","Benjamin",1982,"Rehetobel Schützengesellschaft","Zaller Benjamin 1982"]
[187414,"Zaugg","Loïc",1982,"Urnäsch Schützengesellschaft","Zaugg Loïc 1982"]
[114029,"Zeiter","Antonio",1948,"Heiden Feldschützen","Zeiter Antonio 1948"]
[108147,"Zellweger","Peter",1951,"Herisau Schützenverein","Zellweger Peter 1951"]
[104126,"Ziegler","Walter",1963,"Heiden Feldschützen","Ziegler Walter 1963"]
[21043,"Zientek","André",1986,"Reute Feldschützen","Zientek André 1986"]
[248036,"Zürcher","Ernst",1943,"Gais Sportschützen","Zürcher Ernst 1943"]
[226296,"Züst","Andrea",1983,"Heiden Feldschützen","Züst Andrea 1983"]
[517032,"Züst","Michael",1991,"Reute Feldschützen","Züst Michael 1991"]
[225977,"Züst","Wilfried",1956,"Heiden Feldschützen","Züst Wilfried 1956"]
[209270,"Zweifel","Walter",1964,"Schönengrund-Wald Schützengesellschaft","Zweifel Walter 1964"]
[3240,"Zwicker","Lea",2003,"Gais Sportschützen","Zwicker Lea 2003"]
[26763,"Zwyer","Mia",2009,"Teufen Standschützen","Zwyer Mia 2009"]

{"sheet":"Dropdown","index":3,"n_rows":28,"n_cols":3,"rows_kept":28,"hidden":true}
[{"$f":"COLUMN()","v":1},{"$f":"COLUMN()","v":2}]
["Feld","Vereine","Spalte1"]
["S","Bühler FSG"]
["O","Gais SPS"]
["J","Heiden FSG"]
[null,"Herisau Säge SG"]
[null,"Herisau SV"]
[null,"Rehetobel SG"]
[null,"Reute FSG"]
[null,"Schönengrund-Wald SG"]
[null,"Schwellbrunn FSG"]
[null,"Stein-Hundwil SV"]
[null,"Teufen StS"]
[null,"Urnäsch SG"]
[null,"Wald FSG"]
[null,"Waldstatt SG"]
[null,null,"Hier Vereinsname auswählen"]
{"$rows_empty":10}
[null,"Hier Vereinsname auswählen"]